Body,Body name,Date,Transaction number,Amount,Non recoverable VAT included in amount,Supplier name,Supplier ID,Expense area,Fund type,Expense type,Category description,
http://thanet.gov.uk/supplierspend,Thanet District Council,04/05/2016,407215,617.53,,Adecco Uk Ltd,ADE005,Chief Executive,Revenue,Agency Staff,Human Resources,
http://thanet.gov.uk/supplierspend,Thanet District Council,04/05/2016,407548,3756.99,,Advanced Business Solutions,COA011,Corporate Resources and S151,Revenue,Communications & Computing,ICT,
http://thanet.gov.uk/supplierspend,Thanet District Council,04/05/2016,407212,3334.00,,Albion Fencing&Construction Kent Ltd,ALB005,Operational Services,Revenue,"Repairs,  Alter & Mtce - Build",Building Construction Material,
http://thanet.gov.uk/supplierspend,Thanet District Council,04/05/2016,407213,2343.27,,Albion Fencing&Construction Kent Ltd,ALB005,Operational Services,Revenue,"Repairs,  Alter & Mtce - Build",Building Construction Material,
http://thanet.gov.uk/supplierspend,Thanet District Council,04/05/2016,407214,798.32,,Albion Fencing&Construction Kent Ltd,ALB005,Operational Services,Revenue,"Repairs,  Alter & Mtce - Build",Building Construction Material,
http://thanet.gov.uk/supplierspend,Thanet District Council,04/05/2016,407228,1150.00,,All About Asbestos Limited,ALL044,Operational Services,Revenue,"Repairs,  Alter & Mtce - Build",Environmental Services,
http://thanet.gov.uk/supplierspend,Thanet District Council,04/05/2016,407229,1540.00,,All About Asbestos Limited,ALL044,Corporate Resources and S151,Revenue,"Repairs,  Alter & Mtce - Build",Environmental Services,
http://thanet.gov.uk/supplierspend,Thanet District Council,04/05/2016,407127,1300.00,,All Access Ltd,ALL031,Corporate Resources and S151,Balance Sheet,Rechargeable Works,Building Construction Material,
http://thanet.gov.uk/supplierspend,Thanet District Council,04/05/2016,407162,1897.00,,Antidote Dp Limited,ANT004,Community Services,Revenue,"Print, Stat And Gen Off Exps",Facilities And Management Serv,
http://thanet.gov.uk/supplierspend,Thanet District Council,04/05/2016,407504,320.00,,Astra Uk (Contracts) Ltd,AST003,Operational Services,Revenue,Cleaning & Domestic Supplies,Environmental Services,
http://thanet.gov.uk/supplierspend,Thanet District Council,04/05/2016,407269,2500.00,,Atkins Ltd,ATK004,Operational Services,Revenue,Services,Construction-Repair And Maint,
http://thanet.gov.uk/supplierspend,Thanet District Council,04/05/2016,407787,8707.36,,Bramling Construction Ltd,BRA020,Corporate Resources and S151,Balance Sheet,Capital Exp-Non Council Assets,Grants,
http://thanet.gov.uk/supplierspend,Thanet District Council,04/05/2016,407266,340.00,,Dod'S Parliamentary Comms Ltd,DOD001,East Kent Shared Services,Revenue,Expenses,Human Resources,
http://thanet.gov.uk/supplierspend,Thanet District Council,04/05/2016,407781,2500.00,,Dolphin Lifts Kent,DOL003,Corporate Resources and S151,Balance Sheet,Capital Exp-Non Council Assets,Grants,
http://thanet.gov.uk/supplierspend,Thanet District Council,04/05/2016,407783,2200.00,,Dolphin Lifts Kent,DOL003,Corporate Resources and S151,Balance Sheet,Capital Exp-Non Council Assets,Grants,
http://thanet.gov.uk/supplierspend,Thanet District Council,04/05/2016,406858,9651.72,,Dover District Council,DOV001,Corporate Resources and S151,Revenue,Employee Related Schemes,Various Cats - Public Sector,
http://thanet.gov.uk/supplierspend,Thanet District Council,04/05/2016,407424,1450.00,,Dr Alexander Marshall,MAR100,Operational Services,Revenue,Services,Cemetery And Crematorium,
http://thanet.gov.uk/supplierspend,Thanet District Council,04/05/2016,407075,663.91,,Edf Energy Customers Plc,EDF004,Operational Services,Revenue,Energy Costs,Utilities,
http://thanet.gov.uk/supplierspend,Thanet District Council,04/05/2016,407433,-663.91,,Edf Energy Customers Plc,EDF004,Operational Services,Revenue,Energy Costs,Utilities,
http://thanet.gov.uk/supplierspend,Thanet District Council,04/05/2016,407436,998.55,,Edf Energy Customers Plc,EDF004,Operational Services,Revenue,Energy Costs,Utilities,
http://thanet.gov.uk/supplierspend,Thanet District Council,04/05/2016,407685,1928.65,,Edf Energy Customers Plc,EDF004,Corporate Resources and S151,Revenue,Energy Costs,Utilities,
http://thanet.gov.uk/supplierspend,Thanet District Council,04/05/2016,407707,483.24,,Edf Energy Customers Plc,EDF004,Community Services,Revenue,Energy Costs,Utilities,
http://thanet.gov.uk/supplierspend,Thanet District Council,04/05/2016,407514,1076.00,,Edge Enviro Services Ltd,EDG001,Operational Services,Revenue,Training,Human Resources,
http://thanet.gov.uk/supplierspend,Thanet District Council,04/05/2016,407785,1193.77,,Evermech Services Ltd,EVE011,Corporate Resources and S151,Balance Sheet,Capital Exp-Non Council Assets,Grants,
http://thanet.gov.uk/supplierspend,Thanet District Council,04/05/2016,407784,1328.52,,Family Mosaic Housing,FAM001,Corporate Resources and S151,Balance Sheet,Capital Exp-Non Council Assets,Housing Management,
http://thanet.gov.uk/supplierspend,Thanet District Council,04/05/2016,407786,1048.89,,Family Mosaic Housing,FAM001,Corporate Resources and S151,Balance Sheet,Capital Exp-Non Council Assets,Housing Management,
http://thanet.gov.uk/supplierspend,Thanet District Council,04/05/2016,407768,457.50,,Goodwins,GOO001,Operational Services,Revenue,"Equip, Furniture And Materials",Horticultural,
http://thanet.gov.uk/supplierspend,Thanet District Council,04/05/2016,407534,2008.74,,Hands On Suppliers Ltd,HAN007,Operational Services,Revenue,"Equip, Furniture And Materials",Clothing,
http://thanet.gov.uk/supplierspend,Thanet District Council,04/05/2016,406706,600.25,,Hays Specialist Recruitment Ltd,HAY020,Community Services,Revenue,Agency Staff,Human Resources,
http://thanet.gov.uk/supplierspend,Thanet District Council,04/05/2016,407500,1372.80,,Hi Way Services Ltd,HIW002,Operational Services,Revenue,"Repairs,  Alter & Mtce - Build",Highway Equipment And Material,
http://thanet.gov.uk/supplierspend,Thanet District Council,04/05/2016,407170,962.95,,Hr Go (Kent) Ltd,HRG001,Operational Services,Revenue,Agency Staff,Human Resources,
http://thanet.gov.uk/supplierspend,Thanet District Council,04/05/2016,407171,436.60,,Hr Go (Kent) Ltd,HRG001,Community Services,Revenue,Agency Staff,Human Resources,
http://thanet.gov.uk/supplierspend,Thanet District Council,04/05/2016,407172,1392.67,,Hr Go (Kent) Ltd,HRG001,Operational Services,Revenue,Agency Staff,Human Resources,
http://thanet.gov.uk/supplierspend,Thanet District Council,04/05/2016,407173,946.89,,Hr Go (Kent) Ltd,HRG001,Operational Services,Revenue,Agency Staff,Human Resources,
http://thanet.gov.uk/supplierspend,Thanet District Council,04/05/2016,407175,1130.72,,Hr Go (Kent) Ltd,HRG001,Operational Services,Revenue,Agency Staff,Human Resources,
http://thanet.gov.uk/supplierspend,Thanet District Council,04/05/2016,407102,310.00,,Institute Of Cemetery & Crem Mang,INS015,Operational Services,Revenue,Grants & Subscriptions,Cemetery And Crematorium,
http://thanet.gov.uk/supplierspend,Thanet District Council,04/05/2016,407547,270.00,,Jik Software Ltd,JIK001,Chief Executive,Revenue,Advertising Expenses,Facilities And Management Serv,
http://thanet.gov.uk/supplierspend,Thanet District Council,04/05/2016,407780,831.00,,John Gale,GAL001,Corporate Resources and S151,Balance Sheet,Capital Exp-Non Council Assets,Grants,
http://thanet.gov.uk/supplierspend,Thanet District Council,04/05/2016,407729,2385.00,,Keith Tait,TAI001,Operational Services,Revenue,Grounds Mtce Costs,Horticultural,
http://thanet.gov.uk/supplierspend,Thanet District Council,04/05/2016,407731,1295.00,,Keith Tait,TAI001,Operational Services,Revenue,Grounds Mtce Costs,Horticultural,
http://thanet.gov.uk/supplierspend,Thanet District Council,04/05/2016,407154,8000.00,,Kent Invicta Chamber Of Commerce,KIC001,Community Services,Revenue,Services,Facilities And Management Serv,
http://thanet.gov.uk/supplierspend,Thanet District Council,04/05/2016,407057,3239.15,,Lobster Van Hire Ltd,LOB001,Operational Services,Revenue,Cont Hire & Operating Lease,Vehicle Management,
http://thanet.gov.uk/supplierspend,Thanet District Council,04/05/2016,407145,676.70,,Lyreco Uk Limited,LYR001,Corporate Resources and S151,Revenue,"Equip, Furniture And Materials",Stationery,
http://thanet.gov.uk/supplierspend,Thanet District Council,04/05/2016,407149,244.95,,Lyreco Uk Limited,LYR001,Chief Executive,Revenue,"Print, Stat And Gen Off Exps",Stationery,
http://thanet.gov.uk/supplierspend,Thanet District Council,04/05/2016,407149,50.32,,Lyreco Uk Limited,LYR001,Corporate Resources and S151,Revenue,"Equip, Furniture And Materials",Stationery,
http://thanet.gov.uk/supplierspend,Thanet District Council,04/05/2016,407149,103.05,,Lyreco Uk Limited,LYR001,Community Services,Revenue,"Equip, Furniture And Materials",Stationery,
http://thanet.gov.uk/supplierspend,Thanet District Council,04/05/2016,407149,158.43,,Lyreco Uk Limited,LYR001,Community Services,Revenue,"Print, Stat And Gen Off Exps",Stationery,
http://thanet.gov.uk/supplierspend,Thanet District Council,04/05/2016,407149,51.85,,Lyreco Uk Limited,LYR001,Corporate Governance,Revenue,"Print, Stat And Gen Off Exps",Stationery,
http://thanet.gov.uk/supplierspend,Thanet District Council,04/05/2016,406672,320.00,,M D Electrics,MDE001,Corporate Resources and S151,Revenue,"Repairs,  Alter & Mtce - Build",Building Construction Material,
http://thanet.gov.uk/supplierspend,Thanet District Council,04/05/2016,406726,324.00,,Main Man Supplies Ltd,MAI001,Operational Services,Revenue,"Clothes, Uniforms & Laundry",Clothing,
http://thanet.gov.uk/supplierspend,Thanet District Council,04/05/2016,407100,810.00,,Main Man Supplies Ltd,MAI001,Operational Services,Revenue,"Clothes, Uniforms & Laundry",Clothing,
http://thanet.gov.uk/supplierspend,Thanet District Council,04/05/2016,407796,418.25,,Margate Theatre Organ Club,MTH001,Community Services,Revenue,Grants & Subscriptions,Arts And Leisure Services,
http://thanet.gov.uk/supplierspend,Thanet District Council,04/05/2016,407151,836.00,,Mears Ltd,MEA003,Corporate Resources and S151,Revenue,Training,Construction-Repair And Maint,
http://thanet.gov.uk/supplierspend,Thanet District Council,04/05/2016,407719,393.75,,Mears Ltd,MEA003,Operational Services,Revenue,"Repairs,  Alter & Mtce - Build",Construction-Repair And Maint,
http://thanet.gov.uk/supplierspend,Thanet District Council,04/05/2016,407720,367.61,,Mears Ltd,MEA003,Operational Services,Revenue,"Repairs,  Alter & Mtce - Build",Construction-Repair And Maint,
http://thanet.gov.uk/supplierspend,Thanet District Council,04/05/2016,407721,476.69,,Mears Ltd,MEA003,Operational Services,Revenue,"Repairs,  Alter & Mtce - Build",Construction-Repair And Maint,
http://thanet.gov.uk/supplierspend,Thanet District Council,04/05/2016,407589,9560.00,,Meridian Membranes,MER018,Corporate Resources and S151,Balance Sheet,Repairs And Mtce Holding A/C,Building Construction Material,
http://thanet.gov.uk/supplierspend,Thanet District Council,04/05/2016,407590,9560.00,,Meridian Membranes,MER018,Corporate Resources and S151,Balance Sheet,Repairs And Mtce Holding A/C,Building Construction Material,
http://thanet.gov.uk/supplierspend,Thanet District Council,04/05/2016,407591,2700.00,,Meridian Membranes,MER018,Corporate Resources and S151,Balance Sheet,Repairs And Mtce Holding A/C,Building Construction Material,
http://thanet.gov.uk/supplierspend,Thanet District Council,04/05/2016,407592,9560.00,,Meridian Membranes,MER018,Corporate Resources and S151,Balance Sheet,Repairs And Mtce Holding A/C,Building Construction Material,
http://thanet.gov.uk/supplierspend,Thanet District Council,04/05/2016,407593,9446.00,,Meridian Membranes,MER018,Corporate Resources and S151,Balance Sheet,Repairs And Mtce Holding A/C,Building Construction Material,
http://thanet.gov.uk/supplierspend,Thanet District Council,04/05/2016,407093,512.38,,Morgan Jones Ltd,MOR001,Corporate Resources and S151,Revenue,Agency Staff,Human Resources,
http://thanet.gov.uk/supplierspend,Thanet District Council,04/05/2016,407529,523.60,,Morgan Jones Ltd,MOR001,Corporate Resources and S151,Revenue,Agency Staff,Human Resources,
http://thanet.gov.uk/supplierspend,Thanet District Council,04/05/2016,407530,314.16,,Morgan Jones Ltd,MOR001,Corporate Governance,Revenue,Agency Staff,Human Resources,
http://thanet.gov.uk/supplierspend,Thanet District Council,04/05/2016,407515,18056.74,,Ocs Group Uk Ltd T/A Fountains,OCS005,Operational Services,Revenue,Cleaning & Domestic Supplies,Cleaning And Janitorial,
http://thanet.gov.uk/supplierspend,Thanet District Council,04/05/2016,407179,503.13,,Osborne Richardson Limited,OSB009,Community Services,Revenue,Agency Staff,Human Resources,
http://thanet.gov.uk/supplierspend,Thanet District Council,04/05/2016,407061,42276.40,,Otis Ltd,OTI001,Corporate Resources and S151,Balance Sheet,Repairs And Mtce Holding A/C,Construction-Repair And Maint,
http://thanet.gov.uk/supplierspend,Thanet District Council,04/05/2016,407105,9547.83,,Portakabin Ltd,POR001,Operational Services,Revenue,"Equip, Furniture And Materials",Facilities And Management Serv,
http://thanet.gov.uk/supplierspend,Thanet District Council,04/05/2016,407508,1456.00,,Portakabin Ltd,POR001,Operational Services,Revenue,"Equip, Furniture And Materials",Facilities And Management Serv,
http://thanet.gov.uk/supplierspend,Thanet District Council,04/05/2016,407567,3808.89,,R Cannon,CAN007,Operational Services,Revenue,Services,Maritime Services,
http://thanet.gov.uk/supplierspend,Thanet District Council,04/05/2016,407788,4830.50,,REDACTED PERSONAL DATA,N/A,Corporate Resources and S151,Balance Sheet,Capital Exp-Non Council Assets,Grants,
http://thanet.gov.uk/supplierspend,Thanet District Council,04/05/2016,407789,1597.79,,REDACTED PERSONAL DATA,N/A,Corporate Resources and S151,Balance Sheet,Capital Exp-Non Council Assets,Non Trade Payee,
http://thanet.gov.uk/supplierspend,Thanet District Council,04/05/2016,407150,2000.00,,Rosemary James,JAM007,Community Services,Revenue,"Equip, Furniture And Materials",Arts And Leisure Services,
http://thanet.gov.uk/supplierspend,Thanet District Council,04/05/2016,406826,1350.00,,Sarah Morgan Gardens,SAR005,Community Services,Revenue,Services,Horticultural,
http://thanet.gov.uk/supplierspend,Thanet District Council,04/05/2016,407133,2209.33,,Securitas Security Services (Uk) Ltd,SEC019,Corporate Resources and S151,Revenue,Services,Facilities And Management Serv,
http://thanet.gov.uk/supplierspend,Thanet District Council,04/05/2016,407268,468.00,,Sellick Partnership Ltd,SEL011,Corporate Governance,Revenue,Agency Staff,Human Resources,
http://thanet.gov.uk/supplierspend,Thanet District Council,04/05/2016,407498,2468.00,,Sharpe Pritchard Llp,SHA030,Community Services,Revenue,Services,Legal Services,
http://thanet.gov.uk/supplierspend,Thanet District Council,04/05/2016,407499,4618.00,,Sharpe Pritchard Llp,SHA030,Corporate Resources and S151,Balance Sheet,Other Land And Buildings-Hra,Legal Services,
http://thanet.gov.uk/supplierspend,Thanet District Council,04/05/2016,406788,2490.00,,Sign & Custom,SIG014,Community Services,Revenue,"Equip, Furniture And Materials",Arts And Leisure Services,
http://thanet.gov.uk/supplierspend,Thanet District Council,04/05/2016,407681,-532.33,,Southern Water,SWA001,Operational Services,Revenue,Water Services,Utilities,
http://thanet.gov.uk/supplierspend,Thanet District Council,04/05/2016,407683,367.17,,Southern Water,SWA001,Operational Services,Revenue,Water Services,Utilities,
http://thanet.gov.uk/supplierspend,Thanet District Council,04/05/2016,407688,379.18,,Southern Water,SWA001,Operational Services,Revenue,Water Services,Utilities,
http://thanet.gov.uk/supplierspend,Thanet District Council,04/05/2016,407690,1104.96,,Southern Water,SWA001,Operational Services,Revenue,Water Services,Utilities,
http://thanet.gov.uk/supplierspend,Thanet District Council,04/05/2016,407691,578.42,,Southern Water,SWA001,Corporate Resources and S151,Revenue,Water Services,Utilities,
http://thanet.gov.uk/supplierspend,Thanet District Council,04/05/2016,407693,1481.27,,Southern Water,SWA001,Corporate Resources and S151,Revenue,Water Services,Utilities,
http://thanet.gov.uk/supplierspend,Thanet District Council,04/05/2016,407695,1108.49,,Southern Water,SWA001,Operational Services,Revenue,Water Services,Utilities,
http://thanet.gov.uk/supplierspend,Thanet District Council,04/05/2016,407703,407.70,,Southern Water,SWA001,Corporate Resources and S151,Revenue,Water Services,Utilities,
http://thanet.gov.uk/supplierspend,Thanet District Council,04/05/2016,407705,1837.79,,Southern Water,SWA001,Operational Services,Revenue,Water Services,Utilities,
http://thanet.gov.uk/supplierspend,Thanet District Council,04/05/2016,407706,1233.06,,Southern Water,SWA001,Operational Services,Revenue,Water Services,Utilities,
http://thanet.gov.uk/supplierspend,Thanet District Council,04/05/2016,407708,429.08,,Southern Water,SWA001,Operational Services,Revenue,Water Services,Utilities,
http://thanet.gov.uk/supplierspend,Thanet District Council,04/05/2016,407536,39.88,,Tfa Fuel Services Ltd,TFA003,Operational Services,Revenue,Direct Transport Costs,Utilities,
http://thanet.gov.uk/supplierspend,Thanet District Council,04/05/2016,407536,548.11,,Tfa Fuel Services Ltd,TFA003,Operational Services,Revenue,"Equip, Furniture And Materials",Utilities,
http://thanet.gov.uk/supplierspend,Thanet District Council,04/05/2016,407525,312.00,,Thanet Safe Limited,TSA004,Operational Services,Revenue,"Equip, Furniture And Materials",Facilities And Management Serv,
http://thanet.gov.uk/supplierspend,Thanet District Council,04/05/2016,407132,6808.00,,The Pipeline,PIP002,Community Services,Revenue,"Repairs,  Alter & Mtce - Build",Various Categories,
http://thanet.gov.uk/supplierspend,Thanet District Council,04/05/2016,407089,1030.72,,Viridian Energy Solutions Limited,VIR005,Corporate Resources and S151,Balance Sheet,Repairs And Mtce Holding A/C,Facilities And Management Serv,
http://thanet.gov.uk/supplierspend,Thanet District Council,04/05/2016,407090,1174.12,,Viridian Energy Solutions Limited,VIR005,Corporate Resources and S151,Balance Sheet,Repairs And Mtce Holding A/C,Facilities And Management Serv,
http://thanet.gov.uk/supplierspend,Thanet District Council,04/05/2016,407091,2765.25,,Viridian Energy Solutions Limited,VIR005,Corporate Resources and S151,Balance Sheet,Repairs And Mtce Holding A/C,Facilities And Management Serv,
http://thanet.gov.uk/supplierspend,Thanet District Council,04/05/2016,407185,2149.75,,Viridian Energy Solutions Limited,VIR005,Corporate Resources and S151,Balance Sheet,Repairs And Mtce Holding A/C,Facilities And Management Serv,
http://thanet.gov.uk/supplierspend,Thanet District Council,04/05/2016,407558,2367.83,,Viridian Energy Solutions Limited,VIR005,Corporate Resources and S151,Balance Sheet,Repairs And Mtce Holding A/C,Facilities And Management Serv,
http://thanet.gov.uk/supplierspend,Thanet District Council,04/05/2016,407193,650.00,,W Brazil & Bros,BRA001,Corporate Resources and S151,Balance Sheet,Repairs And Mtce Holding A/C,Environmental Services,
http://thanet.gov.uk/supplierspend,Thanet District Council,04/05/2016,407426,437.22,,W G Burbridge,BUR016,Operational Services,Revenue,"Equip, Furniture And Materials",Building Construction Material,
http://thanet.gov.uk/supplierspend,Thanet District Council,04/05/2016,407107,940.00,,Watling Tyre Service Ltd,WAT003,Operational Services,Revenue,"Equip, Furniture And Materials",Vehicle Management,
http://thanet.gov.uk/supplierspend,Thanet District Council,04/05/2016,407260,3580.00,,Wheelscape Ltd,WHE006,Corporate Resources and S151,Balance Sheet,Plant And Equipment,Construction-Repair And Maint,
http://thanet.gov.uk/supplierspend,Thanet District Council,05/05/2016,406787,7000.00,,Civica Uk Ltd,CIV003,East Kent Shared Services,Revenue,Communications & Computing,ICT,
http://thanet.gov.uk/supplierspend,Thanet District Council,05/05/2016,407555,8325.36,,Dave Mannings Painting Cont Ltd,DAV035,Operational Services,Revenue,"Repairs,  Alter & Mtce - Build",Construction-Repair And Maint,
http://thanet.gov.uk/supplierspend,Thanet District Council,05/05/2016,406835,1065.13,,Dennis Eagle Ltd,DEN005,Operational Services,Revenue,Direct Transport Costs,Vehicle Management,
http://thanet.gov.uk/supplierspend,Thanet District Council,05/05/2016,407888,72.60,,Hr Go (Kent) Ltd,HRG001,Operational Services,Revenue,Agency Staff,Human Resources,
http://thanet.gov.uk/supplierspend,Thanet District Council,05/05/2016,407902,1829.52,,Hr Go (Kent) Ltd,HRG001,Operational Services,Revenue,Agency Staff,Human Resources,
http://thanet.gov.uk/supplierspend,Thanet District Council,05/05/2016,407588,19319.73,,Kent County Council,KCC002,Corporate Resources and S151,Balance Sheet,Capital Exp-Non Council Assets,Various Cats - Public Sector,
http://thanet.gov.uk/supplierspend,Thanet District Council,05/05/2016,407927,344.00,,Llg Enterprises Limited,LLG001,Corporate Governance,Revenue,Expenses,Human Resources,
http://thanet.gov.uk/supplierspend,Thanet District Council,05/05/2016,407931,120972.00,,Municipal Mutual Insurance Limited,MUN010,Corporate Resources and S151,Balance Sheet,Provisions-Future Settlement,Financial Services,
http://thanet.gov.uk/supplierspend,Thanet District Council,05/05/2016,407413,2750.00,,R J Broadley Tree Surgery,RJB002,Operational Services,Revenue,Grounds Mtce Costs,Horticultural,
http://thanet.gov.uk/supplierspend,Thanet District Council,05/05/2016,407038,660.00,,Rigby Taylor Ltd,RIG002,Operational Services,Revenue,"Equip, Furniture And Materials",Horticultural,
http://thanet.gov.uk/supplierspend,Thanet District Council,05/05/2016,407770,700.00,,Saima Hanif,HAN023,Corporate Governance,Revenue,Services,Legal Services,
http://thanet.gov.uk/supplierspend,Thanet District Council,05/05/2016,407939,500.00,,Thanet Roadrunners Athletics Club,THA010,Community Services,Revenue,Grants & Subscriptions,Grants,
http://thanet.gov.uk/supplierspend,Thanet District Council,05/05/2016,407414,3937.49,,The Glenwood Hotel,GLE007,Community Services,Revenue,Services,Housing Management,
http://thanet.gov.uk/supplierspend,Thanet District Council,05/05/2016,407415,4083.33,,The Glenwood Hotel,GLE007,Community Services,Revenue,Services,Housing Management,
http://thanet.gov.uk/supplierspend,Thanet District Council,05/05/2016,407416,1395.82,,The Glenwood Hotel,GLE007,Community Services,Revenue,Services,Housing Management,
http://thanet.gov.uk/supplierspend,Thanet District Council,05/05/2016,406391,4283.32,,Triple M Contract Services Ltd,TRI017,Corporate Resources and S151,Balance Sheet,Repairs And Mtce Holding A/C,Construction-Repair And Maint,
http://thanet.gov.uk/supplierspend,Thanet District Council,05/05/2016,407900,750.00,,Trowers & Hamlins,TRO001,Corporate Governance,Revenue,Services,Legal Services,
http://thanet.gov.uk/supplierspend,Thanet District Council,06/05/2016,406707,1375.00,,Advanced Business Solutions,COA011,Corporate Resources and S151,Revenue,Communications & Computing,ICT,
http://thanet.gov.uk/supplierspend,Thanet District Council,06/05/2016,406362,25211.63,,Bidwells Llp,BID001,Corporate Resources and S151,Balance Sheet,Other Land And Buildings-Hra,Consultancy,
http://thanet.gov.uk/supplierspend,Thanet District Council,06/05/2016,406670,320.00,,M D Electrics,MDE001,Corporate Resources and S151,Revenue,"Repairs,  Alter & Mtce - Build",Building Construction Material,
http://thanet.gov.uk/supplierspend,Thanet District Council,10/05/2016,407910,617.53,,Adecco Uk Ltd,ADE005,Chief Executive,Revenue,Agency Staff,Human Resources,
http://thanet.gov.uk/supplierspend,Thanet District Council,10/05/2016,407571,735.00,,Adelante Software Limited,ADE002,Corporate Resources and S151,Revenue,Communications & Computing,ICT,
http://thanet.gov.uk/supplierspend,Thanet District Council,10/05/2016,407732,4933.77,,Advanced Business Solutions,COA011,Corporate Resources and S151,Revenue,Communications & Computing,ICT,
http://thanet.gov.uk/supplierspend,Thanet District Council,10/05/2016,407733,18509.05,,Advanced Business Solutions,COA011,Corporate Resources and S151,Revenue,Communications & Computing,ICT,
http://thanet.gov.uk/supplierspend,Thanet District Council,10/05/2016,407938,307.50,,Andy Morris,MOR028,Community Services,Revenue,Services,Arts And Leisure Services,
http://thanet.gov.uk/supplierspend,Thanet District Council,10/05/2016,408248,6365.55,,Ats Euromaster Ltd,ATS002,Operational Services,Revenue,Direct Transport Costs,Vehicle Management,
http://thanet.gov.uk/supplierspend,Thanet District Council,10/05/2016,407635,477.60,,Bowman Maintenance Contracting,BMC001,Operational Services,Revenue,"Repairs,  Alter & Mtce - Build",Building Construction Material,
http://thanet.gov.uk/supplierspend,Thanet District Council,10/05/2016,407715,453.00,,Bowman Maintenance Contracting,BMC001,Operational Services,Revenue,"Repairs,  Alter & Mtce - Build",Building Construction Material,
http://thanet.gov.uk/supplierspend,Thanet District Council,10/05/2016,407494,5125.00,,Bradstowe Chartered Surveyors,BRA027,Community Services,Revenue,Services,Facilities And Management Serv,
http://thanet.gov.uk/supplierspend,Thanet District Council,10/05/2016,407157,3414.81,,Call Flow Solutions Limited,CAL006,Corporate Resources and S151,Revenue,Communications & Computing,ICT,
http://thanet.gov.uk/supplierspend,Thanet District Council,10/05/2016,407250,1750.00,,Call Flow Solutions Limited,CAL006,Corporate Resources and S151,Revenue,Communications & Computing,ICT,
http://thanet.gov.uk/supplierspend,Thanet District Council,10/05/2016,407640,803.01,,Canon (Uk) Ltd,CAN021,Corporate Resources and S151,Revenue,"Print, Stat And Gen Off Exps",Facilities And Management Serv,
http://thanet.gov.uk/supplierspend,Thanet District Council,10/05/2016,408032,1000.00,,Canterbury City Council,CAN004,Community Services,Revenue,Grants & Subscriptions,Various Cats - Public Sector,
http://thanet.gov.uk/supplierspend,Thanet District Council,10/05/2016,407944,488.14,,Castle Automotive & Eng Supp Ltd,CAS024,Operational Services,Revenue,"Equip, Furniture And Materials",Vehicle Management,
http://thanet.gov.uk/supplierspend,Thanet District Council,10/05/2016,407643,900.00,,Cedars Steeplejack (Midlands) Ltd,CED004,Operational Services,Revenue,"Repairs,  Alter & Mtce - Build",Construction-Repair And Maint,
http://thanet.gov.uk/supplierspend,Thanet District Council,10/05/2016,408256,21750.00,,Citizens Advice Thanet,CIT016,Community Services,Revenue,Grants & Subscriptions,Human Resources,
http://thanet.gov.uk/supplierspend,Thanet District Council,10/05/2016,408257,92000.00,,Citizens Advice Thanet,CIT016,Community Services,Revenue,Grants & Subscriptions,Human Resources,
http://thanet.gov.uk/supplierspend,Thanet District Council,10/05/2016,408080,3009.00,,Commercial Services Trading Ltd,COM048,Operational Services,Revenue,Cont Hire & Operating Lease,Various Cats - Public Sector,
http://thanet.gov.uk/supplierspend,Thanet District Council,10/05/2016,408081,3854.64,,Commercial Services Trading Ltd,COM048,Operational Services,Revenue,Cont Hire & Operating Lease,Various Cats - Public Sector,
http://thanet.gov.uk/supplierspend,Thanet District Council,10/05/2016,407641,325.00,,Convenience Services Limited,CON040,Operational Services,Revenue,"Repairs,  Alter & Mtce - Build",Facilities And Management Serv,
http://thanet.gov.uk/supplierspend,Thanet District Council,10/05/2016,408045,44407.95,,Coombs (Canterbury) Ltd,COO033,Corporate Resources and S151,Balance Sheet,Other Land And Buildings-Hra,Construction-Repair And Maint,
http://thanet.gov.uk/supplierspend,Thanet District Council,10/05/2016,407276,3003.00,,Dcb (Kent) Ltd,DCB001,Corporate Resources and S151,Balance Sheet,Repairs And Mtce Holding A/C,Construction-Repair And Maint,
http://thanet.gov.uk/supplierspend,Thanet District Council,10/05/2016,407277,10513.70,,Dcb (Kent) Ltd,DCB001,Corporate Resources and S151,Balance Sheet,Repairs And Mtce Holding A/C,Construction-Repair And Maint,
http://thanet.gov.uk/supplierspend,Thanet District Council,10/05/2016,407655,269.95,,Dennis Eagle Ltd,DEN005,Operational Services,Revenue,Direct Transport Costs,Vehicle Management,
http://thanet.gov.uk/supplierspend,Thanet District Council,10/05/2016,407656,288.83,,Dennis Eagle Ltd,DEN005,Operational Services,Revenue,Direct Transport Costs,Vehicle Management,
http://thanet.gov.uk/supplierspend,Thanet District Council,10/05/2016,407659,252.88,,Dennis Eagle Ltd,DEN005,Operational Services,Revenue,Direct Transport Costs,Vehicle Management,
http://thanet.gov.uk/supplierspend,Thanet District Council,10/05/2016,408100,639.90,,East Kent Components Ltd,EKC006,Operational Services,Revenue,Direct Transport Costs,Vehicle Management,
http://thanet.gov.uk/supplierspend,Thanet District Council,10/05/2016,407435,4267.59,,Edf Energy Customers Plc,EDF004,Operational Services,Revenue,Energy Costs,Utilities,
http://thanet.gov.uk/supplierspend,Thanet District Council,10/05/2016,408178,7655.84,,Edf Energy Customers Plc,EDF004,Operational Services,Revenue,Energy Costs,Utilities,
http://thanet.gov.uk/supplierspend,Thanet District Council,10/05/2016,408179,-4267.59,,Edf Energy Customers Plc,EDF004,Operational Services,Revenue,Energy Costs,Utilities,
http://thanet.gov.uk/supplierspend,Thanet District Council,10/05/2016,408180,-7655.84,,Edf Energy Customers Plc,EDF004,Operational Services,Revenue,Energy Costs,Utilities,
http://thanet.gov.uk/supplierspend,Thanet District Council,10/05/2016,408181,6815.73,,Edf Energy Customers Plc,EDF004,Operational Services,Revenue,Energy Costs,Utilities,
http://thanet.gov.uk/supplierspend,Thanet District Council,10/05/2016,408071,1393.00,,Estuary Services Ltd,EST002,Operational Services,Revenue,Cont Hire & Operating Lease,Maritime Services,
http://thanet.gov.uk/supplierspend,Thanet District Council,10/05/2016,408235,893.01,,Family Mosaic Housing,FAM001,Corporate Resources and S151,Balance Sheet,Capital Exp-Non Council Assets,Housing Management,
http://thanet.gov.uk/supplierspend,Thanet District Council,10/05/2016,408239,796.78,,Family Mosaic Housing,FAM001,Corporate Resources and S151,Balance Sheet,Capital Exp-Non Council Assets,Housing Management,
http://thanet.gov.uk/supplierspend,Thanet District Council,10/05/2016,408130,1050.00,,Florence Court Hotel,FLO003,Community Services,Revenue,Services,Housing Management,
http://thanet.gov.uk/supplierspend,Thanet District Council,10/05/2016,408132,385.00,,Florence Court Hotel,FLO003,Community Services,Revenue,Services,Housing Management,
http://thanet.gov.uk/supplierspend,Thanet District Council,10/05/2016,408133,1050.00,,Florence Court Hotel,FLO003,Community Services,Revenue,Services,Housing Management,
http://thanet.gov.uk/supplierspend,Thanet District Council,10/05/2016,408134,990.00,,Florence Court Hotel,FLO003,Community Services,Revenue,Services,Housing Management,
http://thanet.gov.uk/supplierspend,Thanet District Council,10/05/2016,408135,1050.00,,Florence Court Hotel,FLO003,Community Services,Revenue,Services,Housing Management,
http://thanet.gov.uk/supplierspend,Thanet District Council,10/05/2016,408136,330.00,,Florence Court Hotel,FLO003,Community Services,Revenue,Services,Housing Management,
http://thanet.gov.uk/supplierspend,Thanet District Council,10/05/2016,408137,960.00,,Florence Court Hotel,FLO003,Community Services,Revenue,Services,Housing Management,
http://thanet.gov.uk/supplierspend,Thanet District Council,10/05/2016,408138,570.00,,Florence Court Hotel,FLO003,Community Services,Revenue,Services,Housing Management,
http://thanet.gov.uk/supplierspend,Thanet District Council,10/05/2016,408139,570.00,,Florence Court Hotel,FLO003,Community Services,Revenue,Services,Housing Management,
http://thanet.gov.uk/supplierspend,Thanet District Council,10/05/2016,408140,900.00,,Florence Court Hotel,FLO003,Community Services,Revenue,Services,Housing Management,
http://thanet.gov.uk/supplierspend,Thanet District Council,10/05/2016,408141,840.00,,Florence Court Hotel,FLO003,Community Services,Revenue,Services,Housing Management,
http://thanet.gov.uk/supplierspend,Thanet District Council,10/05/2016,408143,960.00,,Florence Court Hotel,FLO003,Community Services,Revenue,Services,Housing Management,
http://thanet.gov.uk/supplierspend,Thanet District Council,10/05/2016,408144,1050.00,,Florence Court Hotel,FLO003,Community Services,Revenue,Services,Housing Management,
http://thanet.gov.uk/supplierspend,Thanet District Council,10/05/2016,408145,900.00,,Florence Court Hotel,FLO003,Community Services,Revenue,Services,Housing Management,
http://thanet.gov.uk/supplierspend,Thanet District Council,10/05/2016,408146,900.00,,Florence Court Hotel,FLO003,Community Services,Revenue,Services,Housing Management,
http://thanet.gov.uk/supplierspend,Thanet District Council,10/05/2016,407972,320.90,,Gb Promotional Products Ltd,GBP001,East Kent Shared Services,Revenue,"Equip, Furniture And Materials",Stationery,
http://thanet.gov.uk/supplierspend,Thanet District Council,10/05/2016,407971,351.20,,Gefco Uk Limited,GEF001,Operational Services,Revenue,Miscellaneous Expenses,Financial Services,
http://thanet.gov.uk/supplierspend,Thanet District Council,10/05/2016,407735,650.00,,Hi Way Services Ltd,HIW002,Operational Services,Revenue,"Repairs,  Alter & Mtce - Build",Highway Equipment And Material,
http://thanet.gov.uk/supplierspend,Thanet District Council,10/05/2016,407895,795.75,,Hr Go (Kent) Ltd,HRG001,Operational Services,Revenue,Agency Staff,Human Resources,
http://thanet.gov.uk/supplierspend,Thanet District Council,10/05/2016,407896,1829.52,,Hr Go (Kent) Ltd,HRG001,Operational Services,Revenue,Agency Staff,Human Resources,
http://thanet.gov.uk/supplierspend,Thanet District Council,10/05/2016,407899,418.90,,Hr Go (Kent) Ltd,HRG001,Community Services,Revenue,Agency Staff,Human Resources,
http://thanet.gov.uk/supplierspend,Thanet District Council,10/05/2016,408151,2607.78,,Hr Go (Kent) Ltd,HRG001,Operational Services,Revenue,Agency Staff,Human Resources,
http://thanet.gov.uk/supplierspend,Thanet District Council,10/05/2016,408153,1879.25,,Hr Go (Kent) Ltd,HRG001,Operational Services,Revenue,Agency Staff,Human Resources,
http://thanet.gov.uk/supplierspend,Thanet District Council,10/05/2016,408154,555.24,,Hr Go (Kent) Ltd,HRG001,Operational Services,Revenue,Agency Staff,Human Resources,
http://thanet.gov.uk/supplierspend,Thanet District Council,10/05/2016,408203,11419.02,,Hr Go (Kent) Ltd,HRG001,Operational Services,Revenue,Agency Staff,Human Resources,
http://thanet.gov.uk/supplierspend,Thanet District Council,10/05/2016,408209,616.88,,Hr Go (Kent) Ltd,HRG001,Operational Services,Revenue,Agency Staff,Human Resources,
http://thanet.gov.uk/supplierspend,Thanet District Council,10/05/2016,408276,358.16,,Hr Go (Kent) Ltd,HRG001,Operational Services,Revenue,Agency Staff,Human Resources,
http://thanet.gov.uk/supplierspend,Thanet District Council,10/05/2016,407613,578.00,,Hydrosphere Uk Limited,HYD009,Operational Services,Revenue,"Equip, Furniture And Materials",Vehicle Management,
http://thanet.gov.uk/supplierspend,Thanet District Council,10/05/2016,408029,675.00,,Hydrosphere Uk Limited,HYD009,Operational Services,Revenue,"Equip, Furniture And Materials",Vehicle Management,
http://thanet.gov.uk/supplierspend,Thanet District Council,10/05/2016,408083,1227.00,,Kenhire Limited,KEN042,Operational Services,Revenue,Cont Hire & Operating Lease,Vehicle Management,
http://thanet.gov.uk/supplierspend,Thanet District Council,10/05/2016,408088,1227.00,,Kenhire Limited,KEN042,Operational Services,Revenue,Cont Hire & Operating Lease,Vehicle Management,
http://thanet.gov.uk/supplierspend,Thanet District Council,10/05/2016,408142,2000.00,,Kpmg Llp Fees Account,KPM001,Corporate Resources and S151,Revenue,Services,Financial Services,
http://thanet.gov.uk/supplierspend,Thanet District Council,10/05/2016,407948,715.00,,Main Man Supplies Ltd,MAI001,Operational Services,Revenue,"Clothes, Uniforms & Laundry",Clothing,
http://thanet.gov.uk/supplierspend,Thanet District Council,10/05/2016,408247,750.00,,Margate Pride Cic,MAR110,Community Services,Revenue,Grants & Subscriptions,Grants,
http://thanet.gov.uk/supplierspend,Thanet District Council,10/05/2016,407889,720.58,,Mears Ltd,MEA003,Corporate Resources and S151,Revenue,"Repairs,  Alter & Mtce - Build",Construction-Repair And Maint,
http://thanet.gov.uk/supplierspend,Thanet District Council,10/05/2016,408067,296.52,,Mears Ltd,MEA003,Operational Services,Revenue,"Repairs,  Alter & Mtce - Build",Construction-Repair And Maint,
http://thanet.gov.uk/supplierspend,Thanet District Council,10/05/2016,408068,460.95,,Mears Ltd,MEA003,Operational Services,Revenue,"Repairs,  Alter & Mtce - Build",Construction-Repair And Maint,
http://thanet.gov.uk/supplierspend,Thanet District Council,10/05/2016,407527,460.69,,Morgan Jones Ltd,MOR001,Community Services,Revenue,Agency Staff,Human Resources,
http://thanet.gov.uk/supplierspend,Thanet District Council,10/05/2016,407957,582.75,,Morgan Jones Ltd,MOR001,Community Services,Revenue,Agency Staff,Human Resources,
http://thanet.gov.uk/supplierspend,Thanet District Council,10/05/2016,407958,508.64,,Morgan Jones Ltd,MOR001,Corporate Resources and S151,Revenue,Agency Staff,Human Resources,
http://thanet.gov.uk/supplierspend,Thanet District Council,10/05/2016,407953,3114.78,,National Express Ltd,NAT010,Community Services,Revenue,Services,Agency Payments,
http://thanet.gov.uk/supplierspend,Thanet District Council,10/05/2016,408243,5000.00,,Neopost Ltd Credifon,NEO002,Corporate Resources and S151,Revenue,Communications & Computing,Mail Services,
http://thanet.gov.uk/supplierspend,Thanet District Council,10/05/2016,407541,1489.45,,Nicole New,NIC009,Community Services,Revenue,Services,Human Resources,
http://thanet.gov.uk/supplierspend,Thanet District Council,10/05/2016,407518,695.77,,Ocs Group Uk Ltd T/A Fountains,OCS005,Operational Services,Revenue,Fixtures & Fittings,Cleaning And Janitorial,
http://thanet.gov.uk/supplierspend,Thanet District Council,10/05/2016,407520,422.81,,Ocs Group Uk Ltd T/A Fountains,OCS005,Operational Services,Revenue,Fixtures & Fittings,Cleaning And Janitorial,
http://thanet.gov.uk/supplierspend,Thanet District Council,10/05/2016,408043,728.24,,Ocs Group Uk Ltd T/A Fountains,OCS005,Operational Services,Revenue,Fixtures & Fittings,Cleaning And Janitorial,
http://thanet.gov.uk/supplierspend,Thanet District Council,10/05/2016,406736,312.52,,Orbis Protect Limited,ORB009,Corporate Resources and S151,Revenue,"Repairs,  Alter & Mtce - Build",Facilities And Management Serv,
http://thanet.gov.uk/supplierspend,Thanet District Council,10/05/2016,407602,503.13,,Osborne Richardson Limited,OSB009,Community Services,Revenue,Agency Staff,Human Resources,
http://thanet.gov.uk/supplierspend,Thanet District Council,10/05/2016,407765,90.00,,Parkeon Limited,PAR063,Community Services,Revenue,"Equip, Furniture And Materials",Street And Traffic Management,
http://thanet.gov.uk/supplierspend,Thanet District Council,10/05/2016,407765,937.50,,Parkeon Limited,PAR063,Operational Services,Revenue,"Equip, Furniture And Materials",Street And Traffic Management,
http://thanet.gov.uk/supplierspend,Thanet District Council,10/05/2016,407766,90.00,,Parkeon Limited,PAR063,Community Services,Revenue,"Equip, Furniture And Materials",Street And Traffic Management,
http://thanet.gov.uk/supplierspend,Thanet District Council,10/05/2016,407766,1027.50,,Parkeon Limited,PAR063,Operational Services,Revenue,"Equip, Furniture And Materials",Street And Traffic Management,
http://thanet.gov.uk/supplierspend,Thanet District Council,10/05/2016,407734,338.18,,Phoenix Software Ltd,PHO002,East Kent Shared Services,Revenue,Communications & Computing,ICT,
http://thanet.gov.uk/supplierspend,Thanet District Council,10/05/2016,407646,394.66,,Premier Paper Group Limited,PRE035,Corporate Resources and S151,Revenue,"Print, Stat And Gen Off Exps",Stationery,
http://thanet.gov.uk/supplierspend,Thanet District Council,10/05/2016,407538,787.50,,R Cannon,CAN007,Operational Services,Revenue,Services,Maritime Services,
http://thanet.gov.uk/supplierspend,Thanet District Council,10/05/2016,408063,2800.00,,Red Zebra Community Solutions,RED022,Community Services,Revenue,Grants & Subscriptions,Special Community Care,
http://thanet.gov.uk/supplierspend,Thanet District Council,10/05/2016,408244,3207.79,,REDACTED PERSONAL DATA,N/A,Corporate Resources and S151,Balance Sheet,Capital Exp-Non Council Assets,Grants,
http://thanet.gov.uk/supplierspend,Thanet District Council,10/05/2016,408245,8218.64,,REDACTED PERSONAL DATA,N/A,Corporate Resources and S151,Balance Sheet,Capital Exp-Non Council Assets,Grants,
http://thanet.gov.uk/supplierspend,Thanet District Council,10/05/2016,408250,1253.03,,REDACTED PERSONAL DATA,N/A,Corporate Resources and S151,Balance Sheet,Capital Exp-Non Council Assets,Grants,
http://thanet.gov.uk/supplierspend,Thanet District Council,10/05/2016,408273,395.83,,Salmestone Grange Ltd,SAL007,Corporate Governance,Revenue,Rents,Facilities And Management Serv,
http://thanet.gov.uk/supplierspend,Thanet District Council,10/05/2016,408030,1359.00,,Shaw Electrical,SHA005,Operational Services,Revenue,"Repairs,  Alter & Mtce - Build",Building Construction Material,
http://thanet.gov.uk/supplierspend,Thanet District Council,10/05/2016,408237,6606.53,,South East Adaptations Limited,SOU026,Corporate Resources and S151,Balance Sheet,Capital Exp-Non Council Assets,Grants,
http://thanet.gov.uk/supplierspend,Thanet District Council,10/05/2016,408026,287.55,,Sparshatts Of Kent Ltd,SPA008,Operational Services,Revenue,Direct Transport Costs,Vehicle Management,
http://thanet.gov.uk/supplierspend,Thanet District Council,10/05/2016,408167,653.40,,Sparshatts Of Kent Ltd,SPA008,Operational Services,Revenue,Direct Transport Costs,Vehicle Management,
http://thanet.gov.uk/supplierspend,Thanet District Council,10/05/2016,408225,973.80,,Sparshatts Of Kent Ltd,SPA008,Operational Services,Revenue,Direct Transport Costs,Vehicle Management,
http://thanet.gov.uk/supplierspend,Thanet District Council,10/05/2016,407422,528.00,,Stagecoach Services Limited,STA023,Corporate Resources and S151,Balance Sheet,Staff Bus Permits Holding A/C,Public Transport,
http://thanet.gov.uk/supplierspend,Thanet District Council,10/05/2016,407423,528.00,,Stagecoach Services Limited,STA023,Corporate Resources and S151,Balance Sheet,Staff Bus Permits Holding A/C,Public Transport,
http://thanet.gov.uk/supplierspend,Thanet District Council,10/05/2016,407714,528.00,,Stagecoach Services Limited,STA023,Corporate Resources and S151,Balance Sheet,Staff Bus Permits Holding A/C,Public Transport,
http://thanet.gov.uk/supplierspend,Thanet District Council,10/05/2016,408289,528.00,,Stagecoach Services Limited,STA023,Corporate Resources and S151,Balance Sheet,Staff Bus Permits Holding A/C,Public Transport,
http://thanet.gov.uk/supplierspend,Thanet District Council,10/05/2016,407624,1200.00,,Straight Manufacturing Limited,STR038,Operational Services,Revenue,"Equip, Furniture And Materials",Environmental Services,
http://thanet.gov.uk/supplierspend,Thanet District Council,10/05/2016,407644,377.20,,Sugg Lighting Ltd,SUG001,Operational Services,Revenue,"Repairs,  Alter & Mtce - Build",Highway Equipment And Material,
http://thanet.gov.uk/supplierspend,Thanet District Council,10/05/2016,407725,410.16,,Terberg Matec Uk Limited,TER010,Operational Services,Revenue,Direct Transport Costs,Vehicle Management,
http://thanet.gov.uk/supplierspend,Thanet District Council,10/05/2016,407961,11.83,,Tfa Fuel Services Ltd,TFA003,Operational Services,Revenue,Direct Transport Costs,Utilities,
http://thanet.gov.uk/supplierspend,Thanet District Council,10/05/2016,407961,1024.64,,Tfa Fuel Services Ltd,TFA003,Operational Services,Revenue,"Equip, Furniture And Materials",Utilities,
http://thanet.gov.uk/supplierspend,Thanet District Council,10/05/2016,407978,1562.49,,The Glenwood Hotel,GLE007,Community Services,Revenue,Services,Housing Management,
http://thanet.gov.uk/supplierspend,Thanet District Council,10/05/2016,407979,4083.33,,The Glenwood Hotel,GLE007,Community Services,Revenue,Services,Housing Management,
http://thanet.gov.uk/supplierspend,Thanet District Council,10/05/2016,407980,4083.33,,The Glenwood Hotel,GLE007,Community Services,Revenue,Services,Housing Management,
http://thanet.gov.uk/supplierspend,Thanet District Council,10/05/2016,408236,7262.14,,Trueden Disability Adaptations Ltd,TRU012,Corporate Resources and S151,Balance Sheet,Capital Exp-Non Council Assets,Grants,
http://thanet.gov.uk/supplierspend,Thanet District Council,10/05/2016,407664,2150.00,,Westbrook Construction (Margate) Ltd,WES021,Operational Services,Revenue,"Repairs,  Alter & Mtce - Build",Various Categories,
http://thanet.gov.uk/supplierspend,Thanet District Council,10/05/2016,407412,400.00,,Your Leisure Kent Limited,YOU016,Community Services,Revenue,Expenses,Arts And Leisure Services,
http://thanet.gov.uk/supplierspend,Thanet District Council,10/05/2016,408069,219.00,,Zen Internet Ltd,ZEN001,East Kent Shared Services,Revenue,Communications & Computing,ICT,
http://thanet.gov.uk/supplierspend,Thanet District Council,12/05/2016,408660,372.67,,Allstar Business Solutions Ltd,ALL038,Operational Services,Revenue,Direct Transport Costs,Vehicle Management,
http://thanet.gov.uk/supplierspend,Thanet District Council,12/05/2016,408661,358.20,,Allstar Business Solutions Ltd,ALL038,Operational Services,Revenue,Direct Transport Costs,Vehicle Management,
http://thanet.gov.uk/supplierspend,Thanet District Council,17/05/2016,408735,1114.30,,10 Dalby Square (Management) Ltd,10D001,Corporate Resources and S151,Balance Sheet,Capital Exp-Non Council Assets,Grants,
http://thanet.gov.uk/supplierspend,Thanet District Council,17/05/2016,408736,1114.30,,10 Dalby Square (Management) Ltd,10D001,Corporate Resources and S151,Balance Sheet,Capital Exp-Non Council Assets,Grants,
http://thanet.gov.uk/supplierspend,Thanet District Council,17/05/2016,408737,1114.30,,10 Dalby Square (Management) Ltd,10D001,Corporate Resources and S151,Balance Sheet,Capital Exp-Non Council Assets,Grants,
http://thanet.gov.uk/supplierspend,Thanet District Council,17/05/2016,408738,1114.30,,10 Dalby Square (Management) Ltd,10D001,Corporate Resources and S151,Balance Sheet,Capital Exp-Non Council Assets,Grants,
http://thanet.gov.uk/supplierspend,Thanet District Council,17/05/2016,408739,1114.30,,10 Dalby Square (Management) Ltd,10D001,Corporate Resources and S151,Balance Sheet,Capital Exp-Non Council Assets,Grants,
http://thanet.gov.uk/supplierspend,Thanet District Council,17/05/2016,408284,617.53,,Adecco Uk Ltd,ADE005,Chief Executive,Revenue,Agency Staff,Human Resources,
http://thanet.gov.uk/supplierspend,Thanet District Council,17/05/2016,408166,2000.00,,Adrian Cox Associates Limited,ADR002,Corporate Resources and S151,Balance Sheet,Other Land And Buildings-Hra,Consultancy,
http://thanet.gov.uk/supplierspend,Thanet District Council,17/05/2016,408102,480.00,,All About Asbestos Limited,ALL044,Corporate Resources and S151,Revenue,"Repairs,  Alter & Mtce - Build",Environmental Services,
http://thanet.gov.uk/supplierspend,Thanet District Council,17/05/2016,408103,635.00,,All About Asbestos Limited,ALL044,Corporate Resources and S151,Revenue,"Repairs,  Alter & Mtce - Build",Environmental Services,
http://thanet.gov.uk/supplierspend,Thanet District Council,17/05/2016,408038,462.00,,All Access Ltd,ALL031,Community Services,Revenue,Services,Building Construction Material,
http://thanet.gov.uk/supplierspend,Thanet District Council,17/05/2016,407914,5750.00,,Als Civil Engineers Ltd,ALS002,Operational Services,Revenue,"Repairs,  Alter & Mtce - Build",Construction-Repair And Maint,
http://thanet.gov.uk/supplierspend,Thanet District Council,17/05/2016,408786,2819.12,,Amec Foster Wheeler Env&Inf Uk Ltd,AME010,Community Services,Revenue,Services,Consultancy,
http://thanet.gov.uk/supplierspend,Thanet District Council,17/05/2016,408042,2916.67,,Ashford Borough Council,ASH001,Community Services,Revenue,Grants & Subscriptions,Various Cats - Public Sector,
http://thanet.gov.uk/supplierspend,Thanet District Council,17/05/2016,408290,270.00,,Birchington Village Centre Association,BIR008,Corporate Governance,Revenue,Rents,Facilities And Management Serv,
http://thanet.gov.uk/supplierspend,Thanet District Council,17/05/2016,408595,5944.43,,Bramling Construction Ltd,BRA020,Corporate Resources and S151,Balance Sheet,Capital Exp-Non Council Assets,Grants,
http://thanet.gov.uk/supplierspend,Thanet District Council,17/05/2016,407495,63607.57,,British Telecommunications Plc,BTE005,Operational Services,Revenue,Communications & Computing,ICT,
http://thanet.gov.uk/supplierspend,Thanet District Council,17/05/2016,408727,20000.00,,Broadstairs Town Team,BTO003,Community Services,Revenue,Grants & Subscriptions,Financial Services,
http://thanet.gov.uk/supplierspend,Thanet District Council,17/05/2016,408175,680.25,,Bt Payment Services Ltd,BTE003,Operational Services,Revenue,Communications & Computing,ICT,
http://thanet.gov.uk/supplierspend,Thanet District Council,17/05/2016,407505,2405.70,,Buckingham Futures Limited,BUC010,Community Services,Revenue,Agency Staff,Human Resources,
http://thanet.gov.uk/supplierspend,Thanet District Council,17/05/2016,407611,1102.35,,Buckingham Futures Limited,BUC010,Community Services,Revenue,Agency Staff,Human Resources,
http://thanet.gov.uk/supplierspend,Thanet District Council,17/05/2016,408048,1271.80,,Buckingham Futures Limited,BUC010,Community Services,Revenue,Agency Staff,Human Resources,
http://thanet.gov.uk/supplierspend,Thanet District Council,17/05/2016,408285,819.00,,Buckingham Futures Limited,BUC010,Community Services,Revenue,Agency Staff,Human Resources,
http://thanet.gov.uk/supplierspend,Thanet District Council,17/05/2016,408649,115.90,,Buzzlines Travel Ltd,BUZ001,Community Services,Revenue,Services,Agency Payments,
http://thanet.gov.uk/supplierspend,Thanet District Council,17/05/2016,408743,140.60,,Buzzlines Travel Ltd,BUZ001,Community Services,Revenue,Services,Agency Payments,
http://thanet.gov.uk/supplierspend,Thanet District Council,17/05/2016,408152,620.00,,C J Doors & Shutters Limited,CJD002,Operational Services,Revenue,"Equip, Furniture And Materials",Building Construction Material,
http://thanet.gov.uk/supplierspend,Thanet District Council,17/05/2016,407983,1610.00,,Cameron Consulting (Uk) Limited,CAM022,Corporate Resources and S151,Balance Sheet,Repairs And Mtce Holding A/C,Consultancy,
http://thanet.gov.uk/supplierspend,Thanet District Council,17/05/2016,408711,3348.00,,Campbell Reith Hill Llp,CAM013,Corporate Resources and S151,Balance Sheet,Investment Property For Lease,Consultancy,
http://thanet.gov.uk/supplierspend,Thanet District Council,17/05/2016,408191,813.30,,Canon (Uk) Ltd,CAN021,Corporate Resources and S151,Revenue,"Equip, Furniture And Materials",Facilities And Management Serv,
http://thanet.gov.uk/supplierspend,Thanet District Council,17/05/2016,408192,3204.87,,Canon (Uk) Ltd,CAN021,Corporate Resources and S151,Revenue,"Equip, Furniture And Materials",Facilities And Management Serv,
http://thanet.gov.uk/supplierspend,Thanet District Council,17/05/2016,408193,2913.48,,Canon (Uk) Ltd,CAN021,Corporate Resources and S151,Revenue,"Equip, Furniture And Materials",Facilities And Management Serv,
http://thanet.gov.uk/supplierspend,Thanet District Council,17/05/2016,408194,3330.41,,Canon (Uk) Ltd,CAN021,Corporate Resources and S151,Revenue,"Equip, Furniture And Materials",Facilities And Management Serv,
http://thanet.gov.uk/supplierspend,Thanet District Council,17/05/2016,408564,286.01,,Canon (Uk) Ltd,CAN021,Corporate Resources and S151,Revenue,"Equip, Furniture And Materials",Facilities And Management Serv,
http://thanet.gov.uk/supplierspend,Thanet District Council,17/05/2016,408301,11400.00,,Capita Resourcing Ltd,CAP007,Corporate Resources and S151,Revenue,Agency Staff,Human Resources,
http://thanet.gov.uk/supplierspend,Thanet District Council,17/05/2016,408058,941.40,,Carol Peters,PET003,Community Services,Revenue,Services,Agency Payments,
http://thanet.gov.uk/supplierspend,Thanet District Council,17/05/2016,408554,15923.38,,Charterhouse Voice & Data Plc,CHA060,East Kent Shared Services,Revenue,Communications & Computing,ICT,
http://thanet.gov.uk/supplierspend,Thanet District Council,17/05/2016,408223,2500.60,,Cobalt Telephone Technologies Ltd,COB002,Operational Services,Revenue,Services,ICT,
http://thanet.gov.uk/supplierspend,Thanet District Council,17/05/2016,407777,500.00,,Cooke & Co.,COO010,Community Services,Revenue,Grants & Subscriptions,Rent Deposits,
http://thanet.gov.uk/supplierspend,Thanet District Council,17/05/2016,408238,31450.25,,Crown Estate,CRO022,Operational Services,Revenue,Rents,Maritime Services,
http://thanet.gov.uk/supplierspend,Thanet District Council,17/05/2016,408240,4877.50,,Crown Estate,CRO022,Operational Services,Revenue,Rents,Maritime Services,
http://thanet.gov.uk/supplierspend,Thanet District Council,17/05/2016,408241,25264.75,,Crown Estate,CRO022,Operational Services,Revenue,Rents,Maritime Services,
http://thanet.gov.uk/supplierspend,Thanet District Council,17/05/2016,407975,103469.93,,Dcb (Kent) Ltd,DCB001,Corporate Resources and S151,Balance Sheet,Repairs And Mtce Holding A/C,Construction-Repair And Maint,
http://thanet.gov.uk/supplierspend,Thanet District Council,17/05/2016,408692,365.82,,Dennis Eagle Ltd,DEN005,Operational Services,Revenue,Direct Transport Costs,Vehicle Management,
http://thanet.gov.uk/supplierspend,Thanet District Council,17/05/2016,407255,520.58,,Dha Planning Limited,DHA002,Community Services,Revenue,Services,Consultancy,
http://thanet.gov.uk/supplierspend,Thanet District Council,17/05/2016,407256,897.32,,Dha Planning Limited,DHA002,Community Services,Revenue,Services,Consultancy,
http://thanet.gov.uk/supplierspend,Thanet District Council,17/05/2016,408224,2112.00,,Disclosure And Barring Service,DIS017,Community Services,Revenue,"Equip, Furniture And Materials",Human Resources,
http://thanet.gov.uk/supplierspend,Thanet District Council,17/05/2016,407627,25339.15,,Dover District Council,DOV001,Corporate Resources and S151,Revenue,Services,Various Cats - Public Sector,
http://thanet.gov.uk/supplierspend,Thanet District Council,17/05/2016,408549,95921.45,,Dover District Council,DOV001,Corporate Resources and S151,Revenue,Services,Various Cats - Public Sector,
http://thanet.gov.uk/supplierspend,Thanet District Council,17/05/2016,408550,16778.77,,Dover District Council,DOV001,Corporate Resources and S151,Revenue,Services,Various Cats - Public Sector,
http://thanet.gov.uk/supplierspend,Thanet District Council,17/05/2016,408614,1950.00,,Dr R K Chhabra,CHH001,Operational Services,Revenue,Services,Cemetery And Crematorium,
http://thanet.gov.uk/supplierspend,Thanet District Council,17/05/2016,407261,405.34,,Edf Energy Customers Plc,EDF004,Operational Services,Revenue,Energy Costs,Utilities,
http://thanet.gov.uk/supplierspend,Thanet District Council,17/05/2016,408520,-663.71,,Edf Energy Customers Plc,EDF004,Corporate Resources and S151,Revenue,Energy Costs,Utilities,
http://thanet.gov.uk/supplierspend,Thanet District Council,17/05/2016,408522,2043.86,,Edf Energy Customers Plc,EDF004,Operational Services,Revenue,Energy Costs,Utilities,
http://thanet.gov.uk/supplierspend,Thanet District Council,17/05/2016,408523,2008.90,,Edf Energy Customers Plc,EDF004,Operational Services,Revenue,Energy Costs,Utilities,
http://thanet.gov.uk/supplierspend,Thanet District Council,17/05/2016,408524,702.87,,Edf Energy Customers Plc,EDF004,Operational Services,Revenue,Energy Costs,Utilities,
http://thanet.gov.uk/supplierspend,Thanet District Council,17/05/2016,408559,306.60,,Edf Energy Customers Plc,EDF004,Corporate Resources and S151,Revenue,Energy Costs,Utilities,
http://thanet.gov.uk/supplierspend,Thanet District Council,17/05/2016,408599,663.71,,Edf Energy Customers Plc,EDF004,Corporate Resources and S151,Revenue,Energy Costs,Utilities,
http://thanet.gov.uk/supplierspend,Thanet District Council,17/05/2016,408618,345.34,,Edf Energy Customers Plc,EDF004,Operational Services,Revenue,Energy Costs,Utilities,
http://thanet.gov.uk/supplierspend,Thanet District Council,17/05/2016,408620,-375.34,,Edf Energy Customers Plc,EDF004,Operational Services,Revenue,Energy Costs,Utilities,
http://thanet.gov.uk/supplierspend,Thanet District Council,17/05/2016,408574,2457.35,,Edge Enviro Services Ltd,EDG001,Operational Services,Revenue,Services,Human Resources,
http://thanet.gov.uk/supplierspend,Thanet District Council,17/05/2016,407969,710.45,,Eyeball Signs,EYE002,Operational Services,Revenue,"Repairs,  Alter & Mtce - Build",Facilities And Management Serv,
http://thanet.gov.uk/supplierspend,Thanet District Council,17/05/2016,408594,717.33,,Family Mosaic Housing,FAM001,Corporate Resources and S151,Balance Sheet,Capital Exp-Non Council Assets,Housing Management,
http://thanet.gov.uk/supplierspend,Thanet District Council,17/05/2016,408078,1188.00,,Gas Contract Services Ltd,GAS004,Corporate Resources and S151,Balance Sheet,Repairs And Mtce Holding A/C,Construction-Repair And Maint,
http://thanet.gov.uk/supplierspend,Thanet District Council,17/05/2016,407798,629.00,,Gb Sport & Leisure Uk Ltd,GBS002,Operational Services,Revenue,"Repairs,  Alter & Mtce - Build",Sports Playground Equipment,
http://thanet.gov.uk/supplierspend,Thanet District Council,17/05/2016,408441,606.00,,Groundsure Limited,GRO023,Corporate Resources and S151,Balance Sheet,Council Dwellings,Construction-Repair And Maint,
http://thanet.gov.uk/supplierspend,Thanet District Council,17/05/2016,408442,606.00,,Groundsure Limited,GRO023,Corporate Resources and S151,Balance Sheet,Council Dwellings,Construction-Repair And Maint,
http://thanet.gov.uk/supplierspend,Thanet District Council,17/05/2016,408443,606.00,,Groundsure Limited,GRO023,Corporate Resources and S151,Balance Sheet,Council Dwellings,Construction-Repair And Maint,
http://thanet.gov.uk/supplierspend,Thanet District Council,17/05/2016,408444,606.00,,Groundsure Limited,GRO023,Corporate Resources and S151,Balance Sheet,Council Dwellings,Construction-Repair And Maint,
http://thanet.gov.uk/supplierspend,Thanet District Council,17/05/2016,408445,606.00,,Groundsure Limited,GRO023,Corporate Resources and S151,Balance Sheet,Council Dwellings,Construction-Repair And Maint,
http://thanet.gov.uk/supplierspend,Thanet District Council,17/05/2016,408446,606.00,,Groundsure Limited,GRO023,Corporate Resources and S151,Balance Sheet,Council Dwellings,Construction-Repair And Maint,
http://thanet.gov.uk/supplierspend,Thanet District Council,17/05/2016,408447,606.00,,Groundsure Limited,GRO023,Corporate Resources and S151,Balance Sheet,Council Dwellings,Construction-Repair And Maint,
http://thanet.gov.uk/supplierspend,Thanet District Council,17/05/2016,408448,606.00,,Groundsure Limited,GRO023,Corporate Resources and S151,Balance Sheet,Council Dwellings,Construction-Repair And Maint,
http://thanet.gov.uk/supplierspend,Thanet District Council,17/05/2016,408449,606.00,,Groundsure Limited,GRO023,Corporate Resources and S151,Balance Sheet,Council Dwellings,Construction-Repair And Maint,
http://thanet.gov.uk/supplierspend,Thanet District Council,17/05/2016,408450,606.00,,Groundsure Limited,GRO023,Corporate Resources and S151,Balance Sheet,Council Dwellings,Construction-Repair And Maint,
http://thanet.gov.uk/supplierspend,Thanet District Council,17/05/2016,408451,606.00,,Groundsure Limited,GRO023,Corporate Resources and S151,Balance Sheet,Council Dwellings,Construction-Repair And Maint,
http://thanet.gov.uk/supplierspend,Thanet District Council,17/05/2016,407600,1590.00,,Haymarket Media Group Ltd,HAY018,Community Services,Revenue,"Print, Stat And Gen Off Exps",Financial Services,
http://thanet.gov.uk/supplierspend,Thanet District Council,17/05/2016,407601,1150.00,,Haymarket Media Group Ltd,HAY018,Community Services,Revenue,"Print, Stat And Gen Off Exps",Financial Services,
http://thanet.gov.uk/supplierspend,Thanet District Council,17/05/2016,408039,2855.00,,Hi Way Services Ltd,HIW002,Operational Services,Revenue,"Repairs,  Alter & Mtce - Build",Highway Equipment And Material,
http://thanet.gov.uk/supplierspend,Thanet District Council,17/05/2016,408190,650.00,,Hi Way Services Ltd,HIW002,Operational Services,Revenue,"Repairs,  Alter & Mtce - Build",Highway Equipment And Material,
http://thanet.gov.uk/supplierspend,Thanet District Council,17/05/2016,400641,5663.55,,Holbrook Revell Electrical Ltd,HOL015,Operational Services,Revenue,"Equip, Furniture And Materials",Building Construction Material,
http://thanet.gov.uk/supplierspend,Thanet District Council,17/05/2016,400641,2612.45,,Holbrook Revell Electrical Ltd,HOL015,Operational Services,Revenue,"Repairs,  Alter & Mtce - Build",Building Construction Material,
http://thanet.gov.uk/supplierspend,Thanet District Council,17/05/2016,408671,312.70,,Holbrook Revell Electrical Ltd,HOL015,Operational Services,Revenue,"Repairs,  Alter & Mtce - Build",Building Construction Material,
http://thanet.gov.uk/supplierspend,Thanet District Council,17/05/2016,407893,1120.21,,Hr Go (Kent) Ltd,HRG001,Operational Services,Revenue,Agency Staff,Human Resources,
http://thanet.gov.uk/supplierspend,Thanet District Council,17/05/2016,407894,694.12,,Hr Go (Kent) Ltd,HRG001,Operational Services,Revenue,Agency Staff,Human Resources,
http://thanet.gov.uk/supplierspend,Thanet District Council,17/05/2016,407897,1218.18,,Hr Go (Kent) Ltd,HRG001,Operational Services,Revenue,Agency Staff,Human Resources,
http://thanet.gov.uk/supplierspend,Thanet District Council,17/05/2016,407903,902.98,,Hr Go (Kent) Ltd,HRG001,Operational Services,Revenue,Agency Staff,Human Resources,
http://thanet.gov.uk/supplierspend,Thanet District Council,17/05/2016,408205,436.60,,Hr Go (Kent) Ltd,HRG001,Community Services,Revenue,Agency Staff,Human Resources,
http://thanet.gov.uk/supplierspend,Thanet District Council,17/05/2016,408207,1117.94,,Hr Go (Kent) Ltd,HRG001,Operational Services,Revenue,Agency Staff,Human Resources,
http://thanet.gov.uk/supplierspend,Thanet District Council,17/05/2016,408208,902.98,,Hr Go (Kent) Ltd,HRG001,Operational Services,Revenue,Agency Staff,Human Resources,
http://thanet.gov.uk/supplierspend,Thanet District Council,17/05/2016,408211,904.33,,Hr Go (Kent) Ltd,HRG001,Operational Services,Revenue,Agency Staff,Human Resources,
http://thanet.gov.uk/supplierspend,Thanet District Council,17/05/2016,408212,1829.52,,Hr Go (Kent) Ltd,HRG001,Operational Services,Revenue,Agency Staff,Human Resources,
http://thanet.gov.uk/supplierspend,Thanet District Council,17/05/2016,408302,1302.30,,Hr Go (Kent) Ltd,HRG001,Operational Services,Revenue,Agency Staff,Human Resources,
http://thanet.gov.uk/supplierspend,Thanet District Council,17/05/2016,408303,701.93,,Hr Go (Kent) Ltd,HRG001,Operational Services,Revenue,Agency Staff,Human Resources,
http://thanet.gov.uk/supplierspend,Thanet District Council,17/05/2016,408304,3300.40,,Hr Go (Kent) Ltd,HRG001,Operational Services,Revenue,Agency Staff,Human Resources,
http://thanet.gov.uk/supplierspend,Thanet District Council,17/05/2016,408312,10512.71,,Hr Go (Kent) Ltd,HRG001,Operational Services,Revenue,Agency Staff,Human Resources,
http://thanet.gov.uk/supplierspend,Thanet District Council,17/05/2016,408596,290.40,,Hr Go (Kent) Ltd,HRG001,Operational Services,Revenue,Agency Staff,Human Resources,
http://thanet.gov.uk/supplierspend,Thanet District Council,17/05/2016,408726,1906.96,,Hr Go (Kent) Ltd,HRG001,Operational Services,Revenue,Agency Staff,Human Resources,
http://thanet.gov.uk/supplierspend,Thanet District Council,17/05/2016,408734,314.60,,Hr Go (Kent) Ltd,HRG001,Operational Services,Revenue,Agency Staff,Human Resources,
http://thanet.gov.uk/supplierspend,Thanet District Council,17/05/2016,407267,4340.00,,Inphase Ltd,INP001,Corporate Resources and S151,Revenue,Communications & Computing,ICT,
http://thanet.gov.uk/supplierspend,Thanet District Council,17/05/2016,407533,750.00,,James Davies,DAV031,Community Services,Revenue,"Equip, Furniture And Materials",Stationery,
http://thanet.gov.uk/supplierspend,Thanet District Council,17/05/2016,408592,619.50,,John Gale,GAL001,Corporate Resources and S151,Balance Sheet,Capital Exp-Non Council Assets,Grants,
http://thanet.gov.uk/supplierspend,Thanet District Council,17/05/2016,408546,803.23,,Kent County Council,KCC002,Corporate Resources and S151,Balance Sheet,Capital Exp-Non Council Assets,Various Cats - Public Sector,
http://thanet.gov.uk/supplierspend,Thanet District Council,17/05/2016,408547,39000.00,,Kent County Council,KCC002,Corporate Resources and S151,Balance Sheet,Capital Exp-Non Council Assets,Various Cats - Public Sector,
http://thanet.gov.uk/supplierspend,Thanet District Council,17/05/2016,408630,350.73,,Kent County Council,KCC002,Corporate Resources and S151,Balance Sheet,Capital Exp-Non Council Assets,Various Cats - Public Sector,
http://thanet.gov.uk/supplierspend,Thanet District Council,17/05/2016,408458,-1632.72,,Kent County Council (Kcs),KCC003,Operational Services,Revenue,Energy Costs,Facilities And Management Serv,
http://thanet.gov.uk/supplierspend,Thanet District Council,17/05/2016,408459,-1810.16,,Kent County Council (Kcs),KCC003,Operational Services,Revenue,Energy Costs,Facilities And Management Serv,
http://thanet.gov.uk/supplierspend,Thanet District Council,17/05/2016,408461,-1810.16,,Kent County Council (Kcs),KCC003,Operational Services,Revenue,Energy Costs,Facilities And Management Serv,
http://thanet.gov.uk/supplierspend,Thanet District Council,17/05/2016,408462,-1751.74,,Kent County Council (Kcs),KCC003,Operational Services,Revenue,Energy Costs,Facilities And Management Serv,
http://thanet.gov.uk/supplierspend,Thanet District Council,17/05/2016,408463,-1810.16,,Kent County Council (Kcs),KCC003,Operational Services,Revenue,Energy Costs,Facilities And Management Serv,
http://thanet.gov.uk/supplierspend,Thanet District Council,17/05/2016,408469,-1709.47,,Kent County Council (Kcs),KCC003,Operational Services,Revenue,Energy Costs,Facilities And Management Serv,
http://thanet.gov.uk/supplierspend,Thanet District Council,17/05/2016,408470,1532.99,,Kent County Council (Kcs),KCC003,Operational Services,Revenue,Energy Costs,Facilities And Management Serv,
http://thanet.gov.uk/supplierspend,Thanet District Council,17/05/2016,408471,1626.75,,Kent County Council (Kcs),KCC003,Operational Services,Revenue,Energy Costs,Facilities And Management Serv,
http://thanet.gov.uk/supplierspend,Thanet District Council,17/05/2016,408472,1574.30,,Kent County Council (Kcs),KCC003,Operational Services,Revenue,Energy Costs,Facilities And Management Serv,
http://thanet.gov.uk/supplierspend,Thanet District Council,17/05/2016,408473,1626.75,,Kent County Council (Kcs),KCC003,Operational Services,Revenue,Energy Costs,Facilities And Management Serv,
http://thanet.gov.uk/supplierspend,Thanet District Council,17/05/2016,408474,1627.34,,Kent County Council (Kcs),KCC003,Operational Services,Revenue,Energy Costs,Facilities And Management Serv,
http://thanet.gov.uk/supplierspend,Thanet District Council,17/05/2016,408475,1381.85,,Kent County Council (Kcs),KCC003,Operational Services,Revenue,Energy Costs,Facilities And Management Serv,
http://thanet.gov.uk/supplierspend,Thanet District Council,17/05/2016,408476,1476.87,,Kent County Council (Kcs),KCC003,Operational Services,Revenue,Energy Costs,Facilities And Management Serv,
http://thanet.gov.uk/supplierspend,Thanet District Council,17/05/2016,408485,5533.54,,Kent County Council (Kcs),KCC003,Corporate Resources and S151,Revenue,Energy Costs,Facilities And Management Serv,
http://thanet.gov.uk/supplierspend,Thanet District Council,17/05/2016,408490,3322.57,,Kent County Council (Kcs),KCC003,Operational Services,Revenue,Energy Costs,Facilities And Management Serv,
http://thanet.gov.uk/supplierspend,Thanet District Council,17/05/2016,408621,6910.54,,Kent County Council (Kcs),KCC003,Operational Services,Revenue,Energy Costs,Facilities And Management Serv,
http://thanet.gov.uk/supplierspend,Thanet District Council,17/05/2016,408634,372.97,,Kent County Council (Kcs),KCC003,Corporate Resources and S151,Revenue,Energy Costs,Facilities And Management Serv,
http://thanet.gov.uk/supplierspend,Thanet District Council,17/05/2016,408635,1985.16,,Kent County Council (Kcs),KCC003,Corporate Resources and S151,Revenue,Energy Costs,Facilities And Management Serv,
http://thanet.gov.uk/supplierspend,Thanet District Council,17/05/2016,408637,342.27,,Kent County Council (Kcs),KCC003,Operational Services,Revenue,Energy Costs,Facilities And Management Serv,
http://thanet.gov.uk/supplierspend,Thanet District Council,17/05/2016,408638,620.15,,Kent County Council (Kcs),KCC003,Operational Services,Revenue,Energy Costs,Facilities And Management Serv,
http://thanet.gov.uk/supplierspend,Thanet District Council,17/05/2016,408639,810.67,,Kent County Council (Kcs),KCC003,Community Services,Revenue,Energy Costs,Facilities And Management Serv,
http://thanet.gov.uk/supplierspend,Thanet District Council,17/05/2016,408640,1013.34,,Kent County Council (Kcs),KCC003,Corporate Resources and S151,Revenue,Energy Costs,Facilities And Management Serv,
http://thanet.gov.uk/supplierspend,Thanet District Council,17/05/2016,408680,1603.12,,Kent County Council (Kcs),KCC003,Operational Services,Revenue,Energy Costs,Facilities And Management Serv,
http://thanet.gov.uk/supplierspend,Thanet District Council,17/05/2016,408070,9104.85,,Kingdom Security Limited,KIN039,Operational Services,Revenue,Services,Street And Traffic Management,
http://thanet.gov.uk/supplierspend,Thanet District Council,17/05/2016,408482,1575.00,,Kingfisher Media Limited,KIN043,Community Services,Revenue,Miscellaneous Expenses,Facilities And Management Serv,
http://thanet.gov.uk/supplierspend,Thanet District Council,17/05/2016,406031,550.00,,Kudos Architecture&Surveying Limited,KUD002,Corporate Resources and S151,Balance Sheet,Council Dwellings,Consultancy,
http://thanet.gov.uk/supplierspend,Thanet District Council,17/05/2016,408313,4391.78,,Level 3 Communications (Uk) Ltd,LEV005,Corporate Resources and S151,Balance Sheet,Telephone Holding Account,ICT,
http://thanet.gov.uk/supplierspend,Thanet District Council,17/05/2016,408307,577.60,,Ling Metals Limited,LIN004,Operational Services,Revenue,Cleaning & Domestic Supplies,Environmental Services,
http://thanet.gov.uk/supplierspend,Thanet District Council,17/05/2016,407795,703.33,,Lobster Van Hire Ltd,LOB001,Corporate Governance,Revenue,Cont Hire & Operating Lease,Vehicle Management,
http://thanet.gov.uk/supplierspend,Thanet District Council,17/05/2016,408061,990.00,,Local Government Association,LGA001,Chief Executive,Revenue,Expenses,Various Categories,
http://thanet.gov.uk/supplierspend,Thanet District Council,17/05/2016,407960,564.00,,Lyreco Uk Limited,LYR001,Corporate Resources and S151,Revenue,"Print, Stat And Gen Off Exps",Stationery,
http://thanet.gov.uk/supplierspend,Thanet District Council,17/05/2016,408077,255.00,,M D Electrics,MDE001,Corporate Resources and S151,Revenue,"Repairs,  Alter & Mtce - Build",Building Construction Material,
http://thanet.gov.uk/supplierspend,Thanet District Council,17/05/2016,407181,67.44,,Main Man Supplies Ltd,MAI001,Operational Services,Revenue,"Clothes, Uniforms & Laundry",Clothing,
http://thanet.gov.uk/supplierspend,Thanet District Council,17/05/2016,407599,-523.80,,Main Man Supplies Ltd,MAI001,Operational Services,Revenue,"Clothes, Uniforms & Laundry",Clothing,
http://thanet.gov.uk/supplierspend,Thanet District Council,17/05/2016,408600,523.80,,Main Man Supplies Ltd,MAI001,Operational Services,Revenue,"Clothes, Uniforms & Laundry",Clothing,
http://thanet.gov.uk/supplierspend,Thanet District Council,17/05/2016,408674,810.00,,Main Man Supplies Ltd,MAI001,Operational Services,Revenue,"Clothes, Uniforms & Laundry",Clothing,
http://thanet.gov.uk/supplierspend,Thanet District Council,17/05/2016,408455,440.00,,Margate Bowling Club,MBO001,Corporate Governance,Revenue,Rents,Facilities And Management Serv,
http://thanet.gov.uk/supplierspend,Thanet District Council,17/05/2016,408291,300.00,,Maxwells Grounds Maintenance Ltd,MAX002,Corporate Resources and S151,Revenue,"Repairs,  Alter & Mtce - Build",Construction-Repair And Maint,
http://thanet.gov.uk/supplierspend,Thanet District Council,17/05/2016,408213,319.73,,Mears Ltd,MEA003,Corporate Resources and S151,Revenue,"Repairs,  Alter & Mtce - Build",Construction-Repair And Maint,
http://thanet.gov.uk/supplierspend,Thanet District Council,17/05/2016,408571,793.55,,Mears Ltd,MEA003,Corporate Resources and S151,Revenue,"Repairs,  Alter & Mtce - Build",Construction-Repair And Maint,
http://thanet.gov.uk/supplierspend,Thanet District Council,17/05/2016,408631,5763.91,,Med Clean South Ltd,MED015,Operational Services,Revenue,Cleaning & Domestic Supplies,Cleaning And Janitorial,
http://thanet.gov.uk/supplierspend,Thanet District Council,17/05/2016,407528,598.40,,Morgan Jones Ltd,MOR001,Corporate Resources and S151,Revenue,Agency Staff,Human Resources,
http://thanet.gov.uk/supplierspend,Thanet District Council,17/05/2016,407955,568.48,,Morgan Jones Ltd,MOR001,Corporate Resources and S151,Revenue,Agency Staff,Human Resources,
http://thanet.gov.uk/supplierspend,Thanet District Council,17/05/2016,407956,314.16,,Morgan Jones Ltd,MOR001,Corporate Governance,Revenue,Agency Staff,Human Resources,
http://thanet.gov.uk/supplierspend,Thanet District Council,17/05/2016,408494,418.88,,Morgan Jones Ltd,MOR001,Corporate Resources and S151,Revenue,Agency Staff,Human Resources,
http://thanet.gov.uk/supplierspend,Thanet District Council,17/05/2016,408541,441.32,,Morgan Jones Ltd,MOR001,Corporate Resources and S151,Revenue,Agency Staff,Human Resources,
http://thanet.gov.uk/supplierspend,Thanet District Council,17/05/2016,408544,3630.90,,New Tech Security Ltd,NEW027,Corporate Resources and S151,Revenue,"Repairs,  Alter & Mtce - Build",Facilities And Management Serv,
http://thanet.gov.uk/supplierspend,Thanet District Council,17/05/2016,408593,6195.00,,Northwood Builders,NOR002,Corporate Resources and S151,Balance Sheet,Capital Exp-Non Council Assets,Grants,
http://thanet.gov.uk/supplierspend,Thanet District Council,17/05/2016,407636,2270.00,,Nov Process & Flow Tech Uk Ltd,NOV009,Operational Services,Revenue,"Equip, Furniture And Materials",Maritime Services,
http://thanet.gov.uk/supplierspend,Thanet District Council,17/05/2016,407965,1160.48,,Ntm-Gb Limited,NTM001,Operational Services,Revenue,Direct Transport Costs,Vehicle Management,
http://thanet.gov.uk/supplierspend,Thanet District Council,17/05/2016,407516,11571.84,,Ocs Group Uk Ltd T/A Fountains,OCS005,Corporate Resources and S151,Balance Sheet,Repairs And Mtce Holding A/C,Cleaning And Janitorial,
http://thanet.gov.uk/supplierspend,Thanet District Council,17/05/2016,408047,503.13,,Osborne Richardson Limited,OSB009,Community Services,Revenue,Agency Staff,Human Resources,
http://thanet.gov.uk/supplierspend,Thanet District Council,17/05/2016,408644,445.63,,Osborne Richardson Limited,OSB009,Community Services,Revenue,Agency Staff,Human Resources,
http://thanet.gov.uk/supplierspend,Thanet District Council,17/05/2016,408576,611.14,,P A Grant Electrical Cont Limited,PAG010,Community Services,Revenue,"Repairs,  Alter & Mtce - Build",Building Construction Material,
http://thanet.gov.uk/supplierspend,Thanet District Council,17/05/2016,408016,789.96,,Page Plan Prints,PAG009,Community Services,Revenue,"Print, Stat And Gen Off Exps",Facilities And Management Serv,
http://thanet.gov.uk/supplierspend,Thanet District Council,17/05/2016,408258,1117.99,,Peer 1 (Uk) Limited,PEE003,East Kent Shared Services,Revenue,Communications & Computing,ICT,
http://thanet.gov.uk/supplierspend,Thanet District Council,17/05/2016,408296,257.88,,Phoenix Software Ltd,PHO002,Corporate Resources and S151,Revenue,"Print, Stat And Gen Off Exps",ICT,
http://thanet.gov.uk/supplierspend,Thanet District Council,17/05/2016,408605,260.00,,Pier Rigging And Testing Limited,PIE008,Operational Services,Revenue,"Repairs,  Alter & Mtce - Build",Maritime Services,
http://thanet.gov.uk/supplierspend,Thanet District Council,17/05/2016,408629,875.52,,Probrand Ltd,PRO012,East Kent Shared Services,Revenue,Communications & Computing,ICT,
http://thanet.gov.uk/supplierspend,Thanet District Council,17/05/2016,408086,876.00,,Profile Security Services Limited,PRO018,Corporate Governance,Revenue,Services,Facilities And Management Serv,
http://thanet.gov.uk/supplierspend,Thanet District Council,17/05/2016,408087,22695.89,,Profile Security Services Limited,PRO018,Operational Services,Revenue,Services,Facilities And Management Serv,
http://thanet.gov.uk/supplierspend,Thanet District Council,17/05/2016,408452,682.50,,R Cannon,CAN007,Operational Services,Revenue,Services,Maritime Services,
http://thanet.gov.uk/supplierspend,Thanet District Council,17/05/2016,408484,595.00,,R Cannon,CAN007,Operational Services,Revenue,Services,Maritime Services,
http://thanet.gov.uk/supplierspend,Thanet District Council,17/05/2016,408184,326.24,,Rexel Uk Limited,REX003,Operational Services,Revenue,"Repairs,  Alter & Mtce - Build",Building Construction Material,
http://thanet.gov.uk/supplierspend,Thanet District Council,17/05/2016,408156,3625.00,,Riba Enterprises Ltd,RIB003,Corporate Resources and S151,Revenue,Services,Human Resources,
http://thanet.gov.uk/supplierspend,Thanet District Council,17/05/2016,408084,3689.40,,Rigby Taylor Ltd,RIG002,Operational Services,Revenue,"Equip, Furniture And Materials",Horticultural,
http://thanet.gov.uk/supplierspend,Thanet District Council,17/05/2016,408230,1030.05,,Royal Mail,ROY004,Corporate Governance,Revenue,Communications & Computing,Mail Services,
http://thanet.gov.uk/supplierspend,Thanet District Council,17/05/2016,408232,1194.30,,Royal Mail,ROY004,Corporate Governance,Revenue,Communications & Computing,Mail Services,
http://thanet.gov.uk/supplierspend,Thanet District Council,17/05/2016,407906,324.00,,Sellick Partnership Ltd,SEL011,Corporate Governance,Revenue,Agency Staff,Human Resources,
http://thanet.gov.uk/supplierspend,Thanet District Council,17/05/2016,408454,540.00,,Sellick Partnership Ltd,SEL011,Corporate Governance,Revenue,Agency Staff,Human Resources,
http://thanet.gov.uk/supplierspend,Thanet District Council,17/05/2016,408171,826.49,,Southern Electric,SEL007,Corporate Resources and S151,Revenue,Energy Costs,Utilities,
http://thanet.gov.uk/supplierspend,Thanet District Council,17/05/2016,408265,291.23,,Southern Electric,SEL007,Operational Services,Revenue,Energy Costs,Utilities,
http://thanet.gov.uk/supplierspend,Thanet District Council,17/05/2016,408270,5.04,,Southern Electric,SEL007,Community Services,Revenue,Energy Costs,Utilities,
http://thanet.gov.uk/supplierspend,Thanet District Council,17/05/2016,408270,523.85,,Southern Electric,SEL007,Operational Services,Revenue,Energy Costs,Utilities,
http://thanet.gov.uk/supplierspend,Thanet District Council,17/05/2016,408526,299.00,,Southern Electric,SEL007,Community Services,Revenue,Energy Costs,Utilities,
http://thanet.gov.uk/supplierspend,Thanet District Council,17/05/2016,408161,1044.75,,Southern Water,SWA001,Operational Services,Revenue,Water Services,Utilities,
http://thanet.gov.uk/supplierspend,Thanet District Council,17/05/2016,408163,755.67,,Southern Water,SWA001,Operational Services,Revenue,Water Services,Utilities,
http://thanet.gov.uk/supplierspend,Thanet District Council,17/05/2016,408528,537.42,,Southern Water,SWA001,Operational Services,Revenue,Water Services,Utilities,
http://thanet.gov.uk/supplierspend,Thanet District Council,17/05/2016,408530,1721.53,,Southern Water,SWA001,Operational Services,Revenue,Water Services,Utilities,
http://thanet.gov.uk/supplierspend,Thanet District Council,17/05/2016,408531,593.20,,Southern Water,SWA001,Operational Services,Revenue,Water Services,Utilities,
http://thanet.gov.uk/supplierspend,Thanet District Council,17/05/2016,408537,821.62,,Southern Water,SWA001,Operational Services,Revenue,Water Services,Utilities,
http://thanet.gov.uk/supplierspend,Thanet District Council,17/05/2016,408560,824.16,,Southern Water,SWA001,Operational Services,Revenue,Water Services,Utilities,
http://thanet.gov.uk/supplierspend,Thanet District Council,17/05/2016,408561,324.22,,Southern Water,SWA001,Operational Services,Revenue,Water Services,Utilities,
http://thanet.gov.uk/supplierspend,Thanet District Council,17/05/2016,408562,1012.42,,Southern Water,SWA001,Operational Services,Revenue,Water Services,Utilities,
http://thanet.gov.uk/supplierspend,Thanet District Council,17/05/2016,408563,2376.17,,Southern Water,SWA001,Operational Services,Revenue,Water Services,Utilities,
http://thanet.gov.uk/supplierspend,Thanet District Council,17/05/2016,408055,319.50,,St Philips Church P P C,STP007,Corporate Governance,Revenue,Rents,Facilities And Management Serv,
http://thanet.gov.uk/supplierspend,Thanet District Council,17/05/2016,408050,18221.47,,Standage & Co Limited,STA058,Corporate Resources and S151,Balance Sheet,Council Dwellings,Construction-Repair And Maint,
http://thanet.gov.uk/supplierspend,Thanet District Council,17/05/2016,408051,68341.04,,Standage & Co Limited,STA058,Corporate Resources and S151,Balance Sheet,Council Dwellings,Construction-Repair And Maint,
http://thanet.gov.uk/supplierspend,Thanet District Council,17/05/2016,408052,5057.16,,Standage & Co Limited,STA058,Corporate Resources and S151,Balance Sheet,Council Dwellings,Construction-Repair And Maint,
http://thanet.gov.uk/supplierspend,Thanet District Council,17/05/2016,408053,82989.89,,Standage & Co Limited,STA058,Corporate Resources and S151,Balance Sheet,Council Dwellings,Construction-Repair And Maint,
http://thanet.gov.uk/supplierspend,Thanet District Council,17/05/2016,408054,20082.86,,Standage & Co Limited,STA058,Corporate Resources and S151,Balance Sheet,Council Dwellings,Construction-Repair And Maint,
http://thanet.gov.uk/supplierspend,Thanet District Council,17/05/2016,408196,1918.03,,Swale Heating Ltd,SWA006,Corporate Resources and S151,Balance Sheet,Repairs And Mtce Holding A/C,Building Construction Material,
http://thanet.gov.uk/supplierspend,Thanet District Council,17/05/2016,408299,25355.05,,Swale Heating Ltd,SWA006,Corporate Resources and S151,Balance Sheet,Repairs And Mtce Holding A/C,Building Construction Material,
http://thanet.gov.uk/supplierspend,Thanet District Council,17/05/2016,408300,3747.00,,Swale Heating Ltd,SWA006,Corporate Resources and S151,Balance Sheet,Repairs And Mtce Holding A/C,Building Construction Material,
http://thanet.gov.uk/supplierspend,Thanet District Council,17/05/2016,408504,3747.90,,Swale Heating Ltd,SWA006,Corporate Resources and S151,Balance Sheet,Repairs And Mtce Holding A/C,Building Construction Material,
http://thanet.gov.uk/supplierspend,Thanet District Council,17/05/2016,408505,2443.19,,Swale Heating Ltd,SWA006,Corporate Resources and S151,Balance Sheet,Repairs And Mtce Holding A/C,Building Construction Material,
http://thanet.gov.uk/supplierspend,Thanet District Council,17/05/2016,408506,1988.81,,Swale Heating Ltd,SWA006,Corporate Resources and S151,Balance Sheet,Repairs And Mtce Holding A/C,Building Construction Material,
http://thanet.gov.uk/supplierspend,Thanet District Council,17/05/2016,408507,1787.31,,Swale Heating Ltd,SWA006,Corporate Resources and S151,Balance Sheet,Repairs And Mtce Holding A/C,Building Construction Material,
http://thanet.gov.uk/supplierspend,Thanet District Council,17/05/2016,408508,1787.31,,Swale Heating Ltd,SWA006,Corporate Resources and S151,Balance Sheet,Repairs And Mtce Holding A/C,Building Construction Material,
http://thanet.gov.uk/supplierspend,Thanet District Council,17/05/2016,408509,1817.53,,Swale Heating Ltd,SWA006,Corporate Resources and S151,Balance Sheet,Repairs And Mtce Holding A/C,Building Construction Material,
http://thanet.gov.uk/supplierspend,Thanet District Council,17/05/2016,408510,1984.78,,Swale Heating Ltd,SWA006,Corporate Resources and S151,Balance Sheet,Repairs And Mtce Holding A/C,Building Construction Material,
http://thanet.gov.uk/supplierspend,Thanet District Council,17/05/2016,408511,1550.54,,Swale Heating Ltd,SWA006,Corporate Resources and S151,Balance Sheet,Repairs And Mtce Holding A/C,Building Construction Material,
http://thanet.gov.uk/supplierspend,Thanet District Council,17/05/2016,408512,1847.31,,Swale Heating Ltd,SWA006,Corporate Resources and S151,Balance Sheet,Repairs And Mtce Holding A/C,Building Construction Material,
http://thanet.gov.uk/supplierspend,Thanet District Council,17/05/2016,408513,1923.32,,Swale Heating Ltd,SWA006,Corporate Resources and S151,Balance Sheet,Repairs And Mtce Holding A/C,Building Construction Material,
http://thanet.gov.uk/supplierspend,Thanet District Council,17/05/2016,408607,7172.77,,Swl Rope Lifting & Testing Limited,SWL001,Operational Services,Revenue,"Repairs,  Alter & Mtce - Build",Maritime Services,
http://thanet.gov.uk/supplierspend,Thanet District Council,17/05/2016,408648,9.75,,Tfa Fuel Services Ltd,TFA003,Operational Services,Revenue,Direct Transport Costs,Utilities,
http://thanet.gov.uk/supplierspend,Thanet District Council,17/05/2016,408648,686.76,,Tfa Fuel Services Ltd,TFA003,Operational Services,Revenue,"Equip, Furniture And Materials",Utilities,
http://thanet.gov.uk/supplierspend,Thanet District Council,17/05/2016,408189,575.10,,Thanet Waste Services Ltd,TWA001,Operational Services,Revenue,Services,Environmental Services,
http://thanet.gov.uk/supplierspend,Thanet District Council,17/05/2016,407632,308.33,,Thorley Taverns Ltd,THO001,Community Services,Revenue,Rents,Facilities And Management Serv,
http://thanet.gov.uk/supplierspend,Thanet District Council,17/05/2016,408488,1683.00,,Topdesk Uk Limited,TOP011,East Kent Shared Services,Revenue,Communications & Computing,ICT,
http://thanet.gov.uk/supplierspend,Thanet District Council,17/05/2016,408199,316.71,,Total Supplies Ltd,TOT009,Corporate Resources and S151,Revenue,Cleaning & Domestic Supplies,Cleaning And Janitorial,
http://thanet.gov.uk/supplierspend,Thanet District Council,17/05/2016,408017,765.00,,Tourism South East,TOU003,Community Services,Revenue,Services,Human Resources,
http://thanet.gov.uk/supplierspend,Thanet District Council,17/05/2016,408500,1514.05,,Tourism Works,TOU007,Community Services,Revenue,Services,Facilities And Management Serv,
http://thanet.gov.uk/supplierspend,Thanet District Council,17/05/2016,408496,478.00,,Trinity Resource Centre,TRI008,Community Services,Revenue,Rents,Facilities And Management Serv,
http://thanet.gov.uk/supplierspend,Thanet District Council,17/05/2016,408072,730.00,,Tunbridge Wells Borough Council,TUN002,Operational Services,Revenue,"Equip, Furniture And Materials",Various Cats - Public Sector,
http://thanet.gov.uk/supplierspend,Thanet District Council,17/05/2016,408227,12840.00,,Turner & Townsend Project Mgmt Ltd,TUR021,Corporate Resources and S151,Balance Sheet,Other Land And Buildings-Hra,Consultancy,
http://thanet.gov.uk/supplierspend,Thanet District Council,17/05/2016,408728,9449.46,,Uk Power Networks (Operations) Ltd,UKP001,Corporate Resources and S151,Balance Sheet,Other Land And Buildings-Hra,Utilities,
http://thanet.gov.uk/supplierspend,Thanet District Council,17/05/2016,408314,1939.98,,Viridian Energy Solutions Limited,VIR005,Corporate Resources and S151,Balance Sheet,Repairs And Mtce Holding A/C,Facilities And Management Serv,
http://thanet.gov.uk/supplierspend,Thanet District Council,17/05/2016,408309,267.33,,Viridor Waste Management Ltd,VIR003,Corporate Resources and S151,Revenue,Private Contractors,Environmental Services,
http://thanet.gov.uk/supplierspend,Thanet District Council,17/05/2016,408310,312.30,,Viridor Waste Management Ltd,VIR003,Corporate Resources and S151,Revenue,Cleaning & Domestic Supplies,Environmental Services,
http://thanet.gov.uk/supplierspend,Thanet District Council,17/05/2016,408109,680.00,,W Brazil & Bros,BRA001,Operational Services,Revenue,Grounds Mtce Costs,Environmental Services,
http://thanet.gov.uk/supplierspend,Thanet District Council,17/05/2016,408110,650.00,,W Brazil & Bros,BRA001,Operational Services,Revenue,Grounds Mtce Costs,Environmental Services,
http://thanet.gov.uk/supplierspend,Thanet District Council,17/05/2016,408112,1525.00,,W Brazil & Bros,BRA001,Operational Services,Revenue,Grounds Mtce Costs,Environmental Services,
http://thanet.gov.uk/supplierspend,Thanet District Council,17/05/2016,408085,4625.92,,Westbrook Construction (Margate) Ltd,WES021,Operational Services,Revenue,"Repairs,  Alter & Mtce - Build",Various Categories,
http://thanet.gov.uk/supplierspend,Thanet District Council,19/05/2016,408025,13300.06,,Facultatieve Technologies,FAC003,Operational Services,Revenue,"Repairs,  Alter & Mtce - Build",Cemetery And Crematorium,
http://thanet.gov.uk/supplierspend,Thanet District Council,19/05/2016,409071,246362.00,,Kent & Medway Towns Fire Authority,KMT001,Corporate Resources and S151,Balance Sheet,Collection Fund - Preceptors,Various Cats - Public Sector,
http://thanet.gov.uk/supplierspend,Thanet District Council,19/05/2016,409072,3894066.00,,Kent County Council,KCC022,Corporate Resources and S151,Balance Sheet,Collection Fund - Preceptors,Various Cats - Public Sector,
http://thanet.gov.uk/supplierspend,Thanet District Council,19/05/2016,409073,525761.00,,Kent Police & Crime Commissioner,KPA003,Corporate Resources and S151,Balance Sheet,Collection Fund - Preceptors,Various Cats - Public Sector,
http://thanet.gov.uk/supplierspend,Thanet District Council,19/05/2016,407532,5086.90,,Kompan Ltd,KOM001,Operational Services,Revenue,"Repairs,  Alter & Mtce - Build",Sports Playground Equipment,
http://thanet.gov.uk/supplierspend,Thanet District Council,19/05/2016,N/A,438.30,,REDACTED PERSONAL DATA,N/A,Operational Services,Revenue,Car Allowances,Non Trade Payee,
http://thanet.gov.uk/supplierspend,Thanet District Council,19/05/2016,N/A,283.37,,REDACTED PERSONAL DATA,N/A,Operational Services,Revenue,Car Allowances,Non Trade Payee,
http://thanet.gov.uk/supplierspend,Thanet District Council,19/05/2016,N/A,290.38,,REDACTED PERSONAL DATA,N/A,Community Services,Revenue,Car Allowances,Non Trade Payee,
http://thanet.gov.uk/supplierspend,Thanet District Council,19/05/2016,N/A,270.14,,REDACTED PERSONAL DATA,N/A,Community Services,Revenue,Car Allowances,Non Trade Payee,
http://thanet.gov.uk/supplierspend,Thanet District Council,19/05/2016,N/A,265.54,,REDACTED PERSONAL DATA,N/A,Operational Services,Revenue,Car Allowances,Non Trade Payee,
http://thanet.gov.uk/supplierspend,Thanet District Council,19/05/2016,N/A,356.55,,REDACTED PERSONAL DATA,N/A,East Kent Shared Services,Revenue,Car Allowances,Non Trade Payee,
http://thanet.gov.uk/supplierspend,Thanet District Council,19/05/2016,N/A,497.46,,REDACTED PERSONAL DATA,N/A,East Kent Shared Services,Revenue,Car Allowances,Non Trade Payee,
http://thanet.gov.uk/supplierspend,Thanet District Council,19/05/2016,N/A,259.24,,REDACTED PERSONAL DATA,N/A,East Kent Shared Services,Revenue,Car Allowances,Non Trade Payee,
http://thanet.gov.uk/supplierspend,Thanet District Council,19/05/2016,N/A,316.85,,REDACTED PERSONAL DATA,N/A,East Kent Shared Services,Revenue,Car Allowances,Non Trade Payee,
http://thanet.gov.uk/supplierspend,Thanet District Council,19/05/2016,N/A,574.53,,REDACTED PERSONAL DATA,N/A,East Kent Shared Services,Revenue,Car Allowances,Non Trade Payee,
http://thanet.gov.uk/supplierspend,Thanet District Council,19/05/2016,N/A,8000.00,,REDACTED PERSONAL DATA,N/A,Corporate Governance,Revenue,Relocation Expenses,Non Trade Payee,
http://thanet.gov.uk/supplierspend,Thanet District Council,19/05/2016,N/A,23.80,,REDACTED PERSONAL DATA,N/A,Corporate Governance,Revenue,Car Allowances,Non Trade Payee,
http://thanet.gov.uk/supplierspend,Thanet District Council,19/05/2016,N/A,4.40,,REDACTED PERSONAL DATA,N/A,Corporate Governance,Revenue,Public Transport,Non Trade Payee,
http://thanet.gov.uk/supplierspend,Thanet District Council,19/05/2016,407952,474.00,,Thanet Safe Limited,TSA004,Operational Services,Revenue,"Equip, Furniture And Materials",Facilities And Management Serv,
http://thanet.gov.uk/supplierspend,Thanet District Council,19/05/2016,407713,5721.65,,Visit Kent Ltd,VIS005,Community Services,Revenue,Grants & Subscriptions,Arts And Leisure Services,
http://thanet.gov.uk/supplierspend,Thanet District Council,19/05/2016,408108,1350.00,,W Brazil & Bros,BRA001,Operational Services,Revenue,Grounds Mtce Costs,Environmental Services,
http://thanet.gov.uk/supplierspend,Thanet District Council,19/05/2016,408111,1840.00,,W Brazil & Bros,BRA001,Operational Services,Revenue,Grounds Mtce Costs,Environmental Services,
http://thanet.gov.uk/supplierspend,Thanet District Council,24/05/2016,408767,492.36,,Adecco Uk Ltd,ADE005,Chief Executive,Revenue,Agency Staff,Human Resources,
http://thanet.gov.uk/supplierspend,Thanet District Council,24/05/2016,408297,380.00,,All Access Ltd,ALL031,Community Services,Revenue,Services,Building Construction Material,
http://thanet.gov.uk/supplierspend,Thanet District Council,24/05/2016,408748,450.00,,Arco Limited,ARC001,Operational Services,Revenue,"Clothes, Uniforms & Laundry",Clothing,
http://thanet.gov.uk/supplierspend,Thanet District Council,24/05/2016,409192,7716.57,,Bramling Construction Ltd,BRA020,Corporate Resources and S151,Balance Sheet,Capital Exp-Non Council Assets,Grants,
http://thanet.gov.uk/supplierspend,Thanet District Council,24/05/2016,409194,4258.61,,Bramling Construction Ltd,BRA020,Corporate Resources and S151,Balance Sheet,Capital Exp-Non Council Assets,Grants,
http://thanet.gov.uk/supplierspend,Thanet District Council,24/05/2016,408627,1089.95,,Buckingham Futures Limited,BUC010,Community Services,Revenue,Agency Staff,Human Resources,
http://thanet.gov.uk/supplierspend,Thanet District Council,24/05/2016,409093,1373.20,,Buckingham Futures Limited,BUC010,Community Services,Revenue,Agency Staff,Human Resources,
http://thanet.gov.uk/supplierspend,Thanet District Council,24/05/2016,408780,2363.25,,Campbell Reith Hill Llp,CAM013,Corporate Resources and S151,Balance Sheet,Investment Property For Lease,Consultancy,
http://thanet.gov.uk/supplierspend,Thanet District Council,24/05/2016,408716,66.75,,Canterbury Christ Church University,CAN006,East Kent Shared Services,Revenue,Catering,Various Categories,
http://thanet.gov.uk/supplierspend,Thanet District Council,24/05/2016,408716,185.00,,Canterbury Christ Church University,CAN006,East Kent Shared Services,Revenue,Training,Various Categories,
http://thanet.gov.uk/supplierspend,Thanet District Council,24/05/2016,408709,39764.84,,Civica Uk Ltd,CIV003,Corporate Resources and S151,Revenue,Communications & Computing,ICT,
http://thanet.gov.uk/supplierspend,Thanet District Council,24/05/2016,408710,1568.75,,Civica Uk Ltd,CIV003,East Kent Shared Services,Revenue,Communications & Computing,ICT,
http://thanet.gov.uk/supplierspend,Thanet District Council,24/05/2016,408984,1400.00,,Civica Uk Ltd,CIV003,East Kent Shared Services,Revenue,Communications & Computing,ICT,
http://thanet.gov.uk/supplierspend,Thanet District Council,24/05/2016,409197,3000.00,,Cliftonville Residents Association,CLI010,Community Services,Revenue,Grants & Subscriptions,Grants,
http://thanet.gov.uk/supplierspend,Thanet District Council,24/05/2016,409155,2675.00,,Commercial Services Trading Ltd,COM048,Operational Services,Revenue,Cont Hire & Operating Lease,Various Cats - Public Sector,
http://thanet.gov.uk/supplierspend,Thanet District Council,24/05/2016,409156,4006.23,,Commercial Services Trading Ltd,COM048,Corporate Resources and S151,Revenue,Cont Hire & Operating Lease,Various Cats - Public Sector,
http://thanet.gov.uk/supplierspend,Thanet District Council,24/05/2016,409114,360.00,,Dover Counselling Centre,DOV014,Community Services,Revenue,Employee Related Schemes,Healthcare,
http://thanet.gov.uk/supplierspend,Thanet District Council,24/05/2016,409119,308.58,,Dover Counselling Centre,DOV014,Community Services,Revenue,Employee Related Schemes,Healthcare,
http://thanet.gov.uk/supplierspend,Thanet District Council,24/05/2016,409106,10541.08,,Dover District Council,DOV001,Community Services,Revenue,Grants & Subscriptions,Various Cats - Public Sector,
http://thanet.gov.uk/supplierspend,Thanet District Council,24/05/2016,409058,2025.00,,Dr Alexander Marshall,MAR100,Operational Services,Revenue,Services,Cemetery And Crematorium,
http://thanet.gov.uk/supplierspend,Thanet District Council,24/05/2016,409045,390.00,,Eyeball Signs,EYE002,Operational Services,Revenue,"Repairs,  Alter & Mtce - Build",Facilities And Management Serv,
http://thanet.gov.uk/supplierspend,Thanet District Council,24/05/2016,409185,537.36,,Family Mosaic Housing,FAM001,Corporate Resources and S151,Balance Sheet,Capital Exp-Non Council Assets,Housing Management,
http://thanet.gov.uk/supplierspend,Thanet District Council,24/05/2016,409189,808.48,,Family Mosaic Housing,FAM001,Corporate Resources and S151,Balance Sheet,Capital Exp-Non Council Assets,Housing Management,
http://thanet.gov.uk/supplierspend,Thanet District Council,24/05/2016,409190,1361.08,,Family Mosaic Housing,FAM001,Corporate Resources and S151,Balance Sheet,Capital Exp-Non Council Assets,Housing Management,
http://thanet.gov.uk/supplierspend,Thanet District Council,24/05/2016,409195,1308.80,,Family Mosaic Housing,FAM001,Corporate Resources and S151,Balance Sheet,Capital Exp-Non Council Assets,Housing Management,
http://thanet.gov.uk/supplierspend,Thanet District Council,24/05/2016,409259,759.10,,Family Mosaic Housing,FAM001,Corporate Resources and S151,Balance Sheet,Capital Exp-Non Council Assets,Housing Management,
http://thanet.gov.uk/supplierspend,Thanet District Council,24/05/2016,409172,450.00,,Fox Property Solutions Limited,FOX010,Corporate Resources and S151,Balance Sheet,Rechargeable Works,Environmental Services,
http://thanet.gov.uk/supplierspend,Thanet District Council,24/05/2016,408645,3000.00,,Gardiner & Theobald Llp,GAR020,Corporate Resources and S151,Balance Sheet,Investment Property For Lease,Consultancy,
http://thanet.gov.uk/supplierspend,Thanet District Council,24/05/2016,409053,47300.00,,Gartner Uk Limited,GAR023,East Kent Shared Services,Revenue,Services,ICT,
http://thanet.gov.uk/supplierspend,Thanet District Council,24/05/2016,408747,4082.60,,Glasdon Uk Ltd,GLA001,Operational Services,Revenue,"Equip, Furniture And Materials",Environmental Services,
http://thanet.gov.uk/supplierspend,Thanet District Council,24/05/2016,408464,1070.00,,Gulliver'S Truck Hire Limited,GUL001,Operational Services,Revenue,Cont Hire & Operating Lease,Vehicle Management,
http://thanet.gov.uk/supplierspend,Thanet District Council,24/05/2016,408775,900.00,,Gulliver'S Truck Hire Limited,GUL001,Operational Services,Revenue,Cont Hire & Operating Lease,Vehicle Management,
http://thanet.gov.uk/supplierspend,Thanet District Council,24/05/2016,409221,7000.00,,H M Courts & Tribunal Service,HMC007,Operational Services,Revenue,Services,Government Agencies,
http://thanet.gov.uk/supplierspend,Thanet District Council,24/05/2016,408724,359.90,,Hr Go (Kent) Ltd,HRG001,Community Services,Revenue,Agency Staff,Human Resources,
http://thanet.gov.uk/supplierspend,Thanet District Council,24/05/2016,408731,1700.88,,Hr Go (Kent) Ltd,HRG001,Operational Services,Revenue,Agency Staff,Human Resources,
http://thanet.gov.uk/supplierspend,Thanet District Council,24/05/2016,408732,1328.64,,Hr Go (Kent) Ltd,HRG001,Operational Services,Revenue,Agency Staff,Human Resources,
http://thanet.gov.uk/supplierspend,Thanet District Council,24/05/2016,408733,689.72,,Hr Go (Kent) Ltd,HRG001,Operational Services,Revenue,Agency Staff,Human Resources,
http://thanet.gov.uk/supplierspend,Thanet District Council,24/05/2016,408740,698.23,,Hr Go (Kent) Ltd,HRG001,Operational Services,Revenue,Agency Staff,Human Resources,
http://thanet.gov.uk/supplierspend,Thanet District Council,24/05/2016,409000,4633.19,,Hr Go (Kent) Ltd,HRG001,Operational Services,Revenue,Agency Staff,Human Resources,
http://thanet.gov.uk/supplierspend,Thanet District Council,24/05/2016,409001,2002.81,,Hr Go (Kent) Ltd,HRG001,Operational Services,Revenue,Agency Staff,Human Resources,
http://thanet.gov.uk/supplierspend,Thanet District Council,24/05/2016,409009,14207.47,,Hr Go (Kent) Ltd,HRG001,Operational Services,Revenue,Agency Staff,Human Resources,
http://thanet.gov.uk/supplierspend,Thanet District Council,24/05/2016,409143,377.52,,Hr Go (Kent) Ltd,HRG001,Operational Services,Revenue,Agency Staff,Human Resources,
http://thanet.gov.uk/supplierspend,Thanet District Council,24/05/2016,409145,1829.52,,Hr Go (Kent) Ltd,HRG001,Operational Services,Revenue,Agency Staff,Human Resources,
http://thanet.gov.uk/supplierspend,Thanet District Council,24/05/2016,408777,350.00,,James Davies,DAV031,Community Services,Revenue,"Equip, Furniture And Materials",Stationery,
http://thanet.gov.uk/supplierspend,Thanet District Council,24/05/2016,409182,969.50,,John Gale,GAL001,Corporate Resources and S151,Balance Sheet,Capital Exp-Non Council Assets,Grants,
http://thanet.gov.uk/supplierspend,Thanet District Council,24/05/2016,409186,601.60,,John Gale,GAL001,Corporate Resources and S151,Balance Sheet,Capital Exp-Non Council Assets,Grants,
http://thanet.gov.uk/supplierspend,Thanet District Council,24/05/2016,408568,700.00,,John Reeve (Plant Hire) Ltd,REE013,Operational Services,Revenue,"Repairs,  Alter & Mtce - Build",Vehicle Management,
http://thanet.gov.uk/supplierspend,Thanet District Council,24/05/2016,408959,1000.00,,Kent County Council,KCC002,Corporate Resources and S151,Revenue,Grants & Subscriptions,Various Cats - Public Sector,
http://thanet.gov.uk/supplierspend,Thanet District Council,24/05/2016,409002,3556.98,,Kent County Council (Kcs),KCC003,Corporate Resources and S151,Revenue,"Equip, Furniture And Materials",Facilities And Management Serv,
http://thanet.gov.uk/supplierspend,Thanet District Council,24/05/2016,409002,197.61,,Kent County Council (Kcs),KCC003,Community Services,Revenue,"Equip, Furniture And Materials",Facilities And Management Serv,
http://thanet.gov.uk/supplierspend,Thanet District Council,24/05/2016,409002,988.05,,Kent County Council (Kcs),KCC003,Operational Services,Revenue,"Equip, Furniture And Materials",Facilities And Management Serv,
http://thanet.gov.uk/supplierspend,Thanet District Council,24/05/2016,409002,197.61,,Kent County Council (Kcs),KCC003,East Kent Shared Services,Revenue,"Equip, Furniture And Materials",Facilities And Management Serv,
http://thanet.gov.uk/supplierspend,Thanet District Council,24/05/2016,408702,785.04,,L W Burt & Son Ltd,BUR027,Corporate Resources and S151,Revenue,"Repairs,  Alter & Mtce - Build",Construction-Repair And Maint,
http://thanet.gov.uk/supplierspend,Thanet District Council,24/05/2016,409052,3833.17,,Lobster Van Hire Ltd,LOB001,Operational Services,Revenue,Cont Hire & Operating Lease,Vehicle Management,
http://thanet.gov.uk/supplierspend,Thanet District Council,24/05/2016,408958,2500.00,,London Borough Of Camden,LON004,Community Services,Revenue,Grants & Subscriptions,Various Cats - Public Sector,
http://thanet.gov.uk/supplierspend,Thanet District Council,24/05/2016,409097,581.71,,Loomis Uk Ltd,LOO002,Operational Services,Revenue,Services,Financial Services,
http://thanet.gov.uk/supplierspend,Thanet District Council,24/05/2016,409120,581.71,,Loomis Uk Ltd,LOO002,Operational Services,Revenue,Services,Financial Services,
http://thanet.gov.uk/supplierspend,Thanet District Council,24/05/2016,408970,252.12,,Mears Ltd,MEA003,Operational Services,Revenue,"Repairs,  Alter & Mtce - Build",Construction-Repair And Maint,
http://thanet.gov.uk/supplierspend,Thanet District Council,24/05/2016,408978,7250.92,,Mears Ltd,MEA003,Corporate Resources and S151,Balance Sheet,Repairs And Mtce Holding A/C,Construction-Repair And Maint,
http://thanet.gov.uk/supplierspend,Thanet District Council,24/05/2016,408980,1806.11,,Mears Ltd,MEA003,Corporate Resources and S151,Balance Sheet,Repairs And Mtce Holding A/C,Construction-Repair And Maint,
http://thanet.gov.uk/supplierspend,Thanet District Council,24/05/2016,408981,55952.46,,Mears Ltd,MEA003,Corporate Resources and S151,Balance Sheet,Repairs And Mtce Holding A/C,Construction-Repair And Maint,
http://thanet.gov.uk/supplierspend,Thanet District Council,24/05/2016,408982,143355.16,,Mears Ltd,MEA003,Corporate Resources and S151,Balance Sheet,Repairs And Mtce Holding A/C,Construction-Repair And Maint,
http://thanet.gov.uk/supplierspend,Thanet District Council,24/05/2016,408983,26648.47,,Mears Ltd,MEA003,Corporate Resources and S151,Balance Sheet,Repairs And Mtce Holding A/C,Construction-Repair And Maint,
http://thanet.gov.uk/supplierspend,Thanet District Council,24/05/2016,409044,9757.00,,Mears Ltd,MEA003,Corporate Resources and S151,Balance Sheet,Council Dwellings,Construction-Repair And Maint,
http://thanet.gov.uk/supplierspend,Thanet District Council,24/05/2016,409051,7997.41,,Mears Ltd,MEA003,Corporate Resources and S151,Balance Sheet,Repairs And Mtce Holding A/C,Construction-Repair And Maint,
http://thanet.gov.uk/supplierspend,Thanet District Council,24/05/2016,409054,552.20,,Mears Ltd,MEA003,Community Services,Revenue,Services,Construction-Repair And Maint,
http://thanet.gov.uk/supplierspend,Thanet District Council,24/05/2016,408972,1171.00,,Medway Insulations Limited,MED006,Corporate Resources and S151,Balance Sheet,Repairs And Mtce Holding A/C,Environmental Services,
http://thanet.gov.uk/supplierspend,Thanet District Council,24/05/2016,407531,611.24,,Morgan Jones Ltd,MOR001,Operational Services,Revenue,Agency Staff,Human Resources,
http://thanet.gov.uk/supplierspend,Thanet District Council,24/05/2016,408493,460.69,,Morgan Jones Ltd,MOR001,Community Services,Revenue,Agency Staff,Human Resources,
http://thanet.gov.uk/supplierspend,Thanet District Council,24/05/2016,408973,582.75,,Morgan Jones Ltd,MOR001,Community Services,Revenue,Agency Staff,Human Resources,
http://thanet.gov.uk/supplierspend,Thanet District Council,24/05/2016,408976,523.60,,Morgan Jones Ltd,MOR001,Corporate Resources and S151,Revenue,Agency Staff,Human Resources,
http://thanet.gov.uk/supplierspend,Thanet District Council,24/05/2016,408456,44100.00,,Mr D M Littleboy,LIT007,Corporate Resources and S151,Balance Sheet,Heritage Assets,Arts And Leisure Services,
http://thanet.gov.uk/supplierspend,Thanet District Council,24/05/2016,409008,575.00,,Mr Darren Osborne,OSB008,Corporate Resources and S151,Revenue,Cleaning & Domestic Supplies,Cleaning And Janitorial,
http://thanet.gov.uk/supplierspend,Thanet District Council,24/05/2016,409008,47.50,,Mr Darren Osborne,OSB008,Community Services,Revenue,Cleaning & Domestic Supplies,Cleaning And Janitorial,
http://thanet.gov.uk/supplierspend,Thanet District Council,24/05/2016,409008,30.00,,Mr Darren Osborne,OSB008,Operational Services,Revenue,Cleaning & Domestic Supplies,Cleaning And Janitorial,
http://thanet.gov.uk/supplierspend,Thanet District Council,24/05/2016,408991,350.00,,Nayland Rock Hotels Ltd,NAY002,Community Services,Revenue,Services,Housing Management,
http://thanet.gov.uk/supplierspend,Thanet District Council,24/05/2016,408963,20000.00,,Neopost Limited Neofunds,NEO004,Corporate Resources and S151,Revenue,Communications & Computing,Mail Services,
http://thanet.gov.uk/supplierspend,Thanet District Council,24/05/2016,409187,6016.00,,Northwood Builders,NOR002,Corporate Resources and S151,Balance Sheet,Capital Exp-Non Council Assets,Grants,
http://thanet.gov.uk/supplierspend,Thanet District Council,24/05/2016,408781,2522.56,,Nouveau Solutions Ltd,NOU001,East Kent Shared Services,Revenue,Communications & Computing,ICT,
http://thanet.gov.uk/supplierspend,Thanet District Council,24/05/2016,409102,488.75,,Osborne Richardson Limited,OSB009,Community Services,Revenue,Agency Staff,Human Resources,
http://thanet.gov.uk/supplierspend,Thanet District Council,24/05/2016,409257,280.00,,Post Office Ltd,POS001,Operational Services,Revenue,Direct Transport Costs,Financial Services,
http://thanet.gov.uk/supplierspend,Thanet District Council,24/05/2016,408707,9961.88,,Potter Raper Partnership,POT006,Corporate Resources and S151,Balance Sheet,Other Land And Buildings-Hra,Housing Management,
http://thanet.gov.uk/supplierspend,Thanet District Council,24/05/2016,409168,10412.50,,Potter Raper Partnership,POT006,Community Services,Revenue,Services,Housing Management,
http://thanet.gov.uk/supplierspend,Thanet District Council,24/05/2016,409035,6968.13,,Puls Global Ltd,PUL006,Operational Services,Revenue,"Equip, Furniture And Materials",Facilities And Management Serv,
http://thanet.gov.uk/supplierspend,Thanet District Council,24/05/2016,409036,5046.19,,Puls Global Ltd,PUL006,Operational Services,Revenue,"Equip, Furniture And Materials",Facilities And Management Serv,
http://thanet.gov.uk/supplierspend,Thanet District Council,24/05/2016,409037,1552.23,,Puls Global Ltd,PUL006,Operational Services,Revenue,"Equip, Furniture And Materials",Facilities And Management Serv,
http://thanet.gov.uk/supplierspend,Thanet District Council,24/05/2016,409094,450.00,,R Cannon,CAN007,Operational Services,Revenue,Services,Maritime Services,
http://thanet.gov.uk/supplierspend,Thanet District Council,24/05/2016,409095,280.00,,R Cannon,CAN007,Operational Services,Revenue,"Equip, Furniture And Materials",Maritime Services,
http://thanet.gov.uk/supplierspend,Thanet District Council,24/05/2016,409198,16024.54,,REDACTED PERSONAL DATA,N/A,Corporate Resources and S151,Balance Sheet,Capital Exp-Non Council Assets,Non Trade Payee,
http://thanet.gov.uk/supplierspend,Thanet District Council,24/05/2016,408643,260.42,,Sands Heritage Ltd,SAN025,Community Services,Revenue,Rents,Various Categories,
http://thanet.gov.uk/supplierspend,Thanet District Council,24/05/2016,408497,1000.41,,Santander Uk Plc,SAN019,Community Services,Revenue,"Print, Stat And Gen Off Exps",Financial Services,
http://thanet.gov.uk/supplierspend,Thanet District Council,24/05/2016,408147,293.12,,Shoeless Joe Limited,SHO016,Community Services,Revenue,"Equip, Furniture And Materials",Stationery,
http://thanet.gov.uk/supplierspend,Thanet District Council,24/05/2016,409183,9695.00,,South East Building Company Limited,SEB001,Corporate Resources and S151,Balance Sheet,Capital Exp-Non Council Assets,Grants,
http://thanet.gov.uk/supplierspend,Thanet District Council,24/05/2016,409260,6325.77,,South East Building Company Limited,SEB001,Corporate Resources and S151,Balance Sheet,Capital Exp-Non Council Assets,Grants,
http://thanet.gov.uk/supplierspend,Thanet District Council,24/05/2016,409261,16094.90,,South East Building Company Limited,SEB001,Corporate Resources and S151,Balance Sheet,Capital Exp-Non Council Assets,Grants,
http://thanet.gov.uk/supplierspend,Thanet District Council,24/05/2016,408062,570.00,,St Lawrence College Enterprises Ltd,STL008,Corporate Governance,Revenue,Rents,Arts And Leisure Services,
http://thanet.gov.uk/supplierspend,Thanet District Council,24/05/2016,408679,8784.04,,Steadline Ltd,STE017,Operational Services,Revenue,"Repairs,  Alter & Mtce - Build",Construction-Repair And Maint,
http://thanet.gov.uk/supplierspend,Thanet District Council,24/05/2016,408608,3805.40,,Swl Rope Lifting & Testing Limited,SWL001,Operational Services,Revenue,"Equip, Furniture And Materials",Maritime Services,
http://thanet.gov.uk/supplierspend,Thanet District Council,24/05/2016,409178,3359.88,,Templars Estates Ltd,TEM005,Corporate Resources and S151,Balance Sheet,Capital Exp-Non Council Assets,Grants,
http://thanet.gov.uk/supplierspend,Thanet District Council,24/05/2016,409179,2838.51,,Templars Estates Ltd,TEM005,Corporate Resources and S151,Balance Sheet,Capital Exp-Non Council Assets,Grants,
http://thanet.gov.uk/supplierspend,Thanet District Council,24/05/2016,409180,7286.22,,Templars Estates Ltd,TEM005,Corporate Resources and S151,Balance Sheet,Capital Exp-Non Council Assets,Grants,
http://thanet.gov.uk/supplierspend,Thanet District Council,24/05/2016,409181,2916.49,,Templars Estates Ltd,TEM005,Corporate Resources and S151,Balance Sheet,Capital Exp-Non Council Assets,Grants,
http://thanet.gov.uk/supplierspend,Thanet District Council,24/05/2016,409091,900.00,,Thanet Nursery Project Limited,TNU001,Corporate Resources and S151,Revenue,Rents,Facilities And Management Serv,
http://thanet.gov.uk/supplierspend,Thanet District Council,24/05/2016,408555,3604.17,,The Glenwood Hotel,GLE007,Community Services,Revenue,Services,Housing Management,
http://thanet.gov.uk/supplierspend,Thanet District Council,24/05/2016,408556,3791.66,,The Glenwood Hotel,GLE007,Community Services,Revenue,Services,Housing Management,
http://thanet.gov.uk/supplierspend,Thanet District Council,24/05/2016,408557,1645.81,,The Glenwood Hotel,GLE007,Community Services,Revenue,Services,Housing Management,
http://thanet.gov.uk/supplierspend,Thanet District Council,24/05/2016,408758,3937.50,,The Glenwood Hotel,GLE007,Community Services,Revenue,Services,Housing Management,
http://thanet.gov.uk/supplierspend,Thanet District Council,24/05/2016,408759,2249.99,,The Glenwood Hotel,GLE007,Community Services,Revenue,Services,Housing Management,
http://thanet.gov.uk/supplierspend,Thanet District Council,24/05/2016,408760,3499.99,,The Glenwood Hotel,GLE007,Community Services,Revenue,Services,Housing Management,
http://thanet.gov.uk/supplierspend,Thanet District Council,24/05/2016,409184,4798.00,,Titan Lifts Ltd,TIT006,Corporate Resources and S151,Balance Sheet,Capital Exp-Non Council Assets,Facilities And Management Serv,
http://thanet.gov.uk/supplierspend,Thanet District Council,24/05/2016,408486,3000.00,,Tourism South East,TOU003,Community Services,Revenue,Grants & Subscriptions,Human Resources,
http://thanet.gov.uk/supplierspend,Thanet District Council,24/05/2016,409188,6737.27,,Trueden Disability Adaptations Ltd,TRU012,Corporate Resources and S151,Balance Sheet,Capital Exp-Non Council Assets,Grants,
http://thanet.gov.uk/supplierspend,Thanet District Council,24/05/2016,409191,12242.26,,Trueden Disability Adaptations Ltd,TRU012,Corporate Resources and S151,Balance Sheet,Capital Exp-Non Council Assets,Grants,
http://thanet.gov.uk/supplierspend,Thanet District Council,24/05/2016,409193,13531.68,,Trueden Disability Adaptations Ltd,TRU012,Corporate Resources and S151,Balance Sheet,Capital Exp-Non Council Assets,Grants,
http://thanet.gov.uk/supplierspend,Thanet District Council,24/05/2016,409196,10873.34,,Trueden Disability Adaptations Ltd,TRU012,Corporate Resources and S151,Balance Sheet,Capital Exp-Non Council Assets,Grants,
http://thanet.gov.uk/supplierspend,Thanet District Council,24/05/2016,409137,900.00,,Urban Surveying & Design Ltd,URB005,Corporate Resources and S151,Balance Sheet,Community Assets,Consultancy,
http://thanet.gov.uk/supplierspend,Thanet District Council,24/05/2016,408483,13412.56,,Xpress Software Solutions Ltd,XPR002,Corporate Governance,Revenue,Communications & Computing,ICT,
http://thanet.gov.uk/supplierspend,Thanet District Council,25/05/2016,409493,76.00,,Allstar Business Solutions Ltd,ALL038,Operational Services,Revenue,Direct Transport Costs,Vehicle Management,
http://thanet.gov.uk/supplierspend,Thanet District Council,25/05/2016,409493,19.00,,Allstar Business Solutions Ltd,ALL038,Operational Services,Revenue,Direct Transport Costs,Vehicle Management,
http://thanet.gov.uk/supplierspend,Thanet District Council,25/05/2016,409493,19.00,,Allstar Business Solutions Ltd,ALL038,Operational Services,Revenue,Direct Transport Costs,Vehicle Management,
http://thanet.gov.uk/supplierspend,Thanet District Council,25/05/2016,409493,114.00,,Allstar Business Solutions Ltd,ALL038,Operational Services,Revenue,Direct Transport Costs,Vehicle Management,
http://thanet.gov.uk/supplierspend,Thanet District Council,25/05/2016,409493,19.00,,Allstar Business Solutions Ltd,ALL038,Chief Executive,Revenue,Direct Transport Costs,Vehicle Management,
http://thanet.gov.uk/supplierspend,Thanet District Council,25/05/2016,409494,360.45,,Allstar Business Solutions Ltd,ALL038,Operational Services,Revenue,Direct Transport Costs,Vehicle Management,
http://thanet.gov.uk/supplierspend,Thanet District Council,25/05/2016,409443,270789.00,,Maidstone Borough Council,MAI002,Corporate Resources and S151,Balance Sheet,Collection Fund,Various Cats - Public Sector,
http://thanet.gov.uk/supplierspend,Thanet District Council,25/05/2016,409443,776363.00,,Maidstone Borough Council,MAI002,Corporate Resources and S151,Balance Sheet,Revenue Financing,Various Cats - Public Sector,
http://thanet.gov.uk/supplierspend,Thanet District Council,25/05/2016,409467,264.49,,Nat West Bank,NWE001,Corporate Resources and S151,Revenue,Services,Various Categories,
http://thanet.gov.uk/supplierspend,Thanet District Council,25/05/2016,409457,884.13,,Santander ,SAN017,Corporate Resources and S151,Revenue,Services,Various Categories,
http://thanet.gov.uk/supplierspend,Thanet District Council,25/05/2016,409458,1759.39,,Santander ,SAN017,Corporate Resources and S151,Revenue,Services,Various Categories,
http://thanet.gov.uk/supplierspend,Thanet District Council,25/05/2016,409458,586.46,,Santander ,SAN017,Community Services,Revenue,Services,Various Categories,
http://thanet.gov.uk/supplierspend,Thanet District Council,25/05/2016,409450,-221841.00,,Secretary Of State,SEC003,Corporate Resources and S151,Revenue,Revenue Financing,Government Agencies,
http://thanet.gov.uk/supplierspend,Thanet District Council,25/05/2016,409450,1218668.00,,Secretary Of State,SEC003,Corporate Resources and S151,Balance Sheet,Collection Fund,Government Agencies,
http://thanet.gov.uk/supplierspend,Thanet District Council,25/05/2016,409451,1218667.00,,Secretary Of State,SEC003,Corporate Resources and S151,Balance Sheet,Collection Fund,Government Agencies,
http://thanet.gov.uk/supplierspend,Thanet District Council,25/05/2016,409459,2954.69,,Worldpay Ltd,WOR008,Corporate Resources and S151,Revenue,Services,Financial Services,
http://thanet.gov.uk/supplierspend,Thanet District Council,25/05/2016,409461,2706.73,,Worldpay Ltd,WOR008,Corporate Resources and S151,Revenue,Services,Financial Services,
http://thanet.gov.uk/supplierspend,Thanet District Council,25/05/2016,409465,806.18,,Worldpay Ltd,WOR008,Corporate Resources and S151,Revenue,Services,Financial Services,
http://thanet.gov.uk/supplierspend,Thanet District Council,26/05/2016,409152,300.00,,1st Margate St Johns Scout Group,1ST005,Corporate Governance,Revenue,Rents,Grants,
http://thanet.gov.uk/supplierspend,Thanet District Council,26/05/2016,409222,400.00,,Active Life Limited,ACT015,Community Services,Revenue,Grants & Subscriptions,Arts And Leisure Services,
http://thanet.gov.uk/supplierspend,Thanet District Council,26/05/2016,409208,3100.00,,Albion Fencing&Construction Kent Ltd,ALB005,Operational Services,Revenue,"Repairs,  Alter & Mtce - Build",Building Construction Material,
http://thanet.gov.uk/supplierspend,Thanet District Council,26/05/2016,PC8262,24.71,,Aldi ,N/A,Operational Services,Revenue,Catering,Catering,
http://thanet.gov.uk/supplierspend,Thanet District Council,26/05/2016,PC8263,2.66,,Aldi ,N/A,Operational Services,Revenue,Catering,Catering,
http://thanet.gov.uk/supplierspend,Thanet District Council,26/05/2016,PC8317,3.17,,Aldi ,N/A,Operational Services,Revenue,Catering,Catering,
http://thanet.gov.uk/supplierspend,Thanet District Council,26/05/2016,PC8318,0.37,,Aldi ,N/A,Operational Services,Revenue,Catering,Catering,
http://thanet.gov.uk/supplierspend,Thanet District Council,26/05/2016,PC8202,27.96,4.66,Amazon UK Marketplace,N/A,Operational Services,Revenue,"Equip, Furniture And Materials",Stationery,
http://thanet.gov.uk/supplierspend,Thanet District Council,26/05/2016,PC8203,27.96,4.66,Amazon UK Marketplace,N/A,Operational Services,Revenue,"Equip, Furniture And Materials",Stationery,
http://thanet.gov.uk/supplierspend,Thanet District Council,26/05/2016,PC8210,7.04,1.18,Amazon UK Marketplace,N/A,Operational Services,Revenue,"Equip, Furniture And Materials",Stationery,
http://thanet.gov.uk/supplierspend,Thanet District Council,26/05/2016,PC8211,7.04,1.17,Amazon UK Marketplace,N/A,Operational Services,Revenue,"Equip, Furniture And Materials",Stationery,
http://thanet.gov.uk/supplierspend,Thanet District Council,26/05/2016,PC8213,7.80,1.3,Amazon UK Marketplace,N/A,Operational Services,Revenue,"Equip, Furniture And Materials",Stationery,
http://thanet.gov.uk/supplierspend,Thanet District Council,26/05/2016,PC8214,7.80,1.3,Amazon UK Marketplace,N/A,Operational Services,Revenue,"Equip, Furniture And Materials",Stationery,
http://thanet.gov.uk/supplierspend,Thanet District Council,26/05/2016,PC8215,15.98,,Amazon Uk Marketplace,N/A,East Kent Shared Services,Revenue,"Equip, Furniture And Materials",Stationery,
http://thanet.gov.uk/supplierspend,Thanet District Council,26/05/2016,PC8259,2.87,,Amazon UK Marketplace,N/A,Community Services,Revenue,"Print, Stat And Gen Off Exps",Stationery,
http://thanet.gov.uk/supplierspend,Thanet District Council,26/05/2016,PC8290,12.95,2.16,Amazon UK Marketplace,N/A,Operational Services,Revenue,"Equip, Furniture And Materials",Stationery,
http://thanet.gov.uk/supplierspend,Thanet District Council,26/05/2016,PC8291,1.84,0.31,Amazon UK Marketplace,N/A,Operational Services,Revenue,"Equip, Furniture And Materials",Stationery,
http://thanet.gov.uk/supplierspend,Thanet District Council,26/05/2016,PC8292,1.95,0.33,Amazon UK Marketplace,N/A,Operational Services,Revenue,"Equip, Furniture And Materials",Stationery,
http://thanet.gov.uk/supplierspend,Thanet District Council,26/05/2016,PC8315,6.04,,Amazon UK Marketplace,N/A,East Kent Shared Services,Revenue,"Equip, Furniture And Materials",Stationery,
http://thanet.gov.uk/supplierspend,Thanet District Council,26/05/2016,PC8355,3.99,,Amazon UK Marketplace,N/A,East Kent Shared Services,Revenue,"Equip, Furniture And Materials",Stationery,
http://thanet.gov.uk/supplierspend,Thanet District Council,26/05/2016,PC8293,23.24,,Amazon UK Retail,N/A,Operational Services,Revenue,"Equip, Furniture And Materials",Stationery,
http://thanet.gov.uk/supplierspend,Thanet District Council,26/05/2016,409439,460.75,,Aqua Pure (South East) Limited,AQU007,Operational Services,Revenue,"Repairs,  Alter & Mtce - Build",Maritime Services,
http://thanet.gov.uk/supplierspend,Thanet District Council,26/05/2016,PC8295,24.99,,Argos ,N/A,Operational Services,Revenue,"Equip, Furniture And Materials",Facilities And Management Serv,
http://thanet.gov.uk/supplierspend,Thanet District Council,26/05/2016,PC8220,43.94,7.33,Argos Retail Group,N/A,Operational Services,Revenue,"Equip, Furniture And Materials",Domestic Goods,
http://thanet.gov.uk/supplierspend,Thanet District Council,26/05/2016,PC8264,3.95,,Asda,N/A,Operational Services,Revenue,Catering,Catering,
http://thanet.gov.uk/supplierspend,Thanet District Council,26/05/2016,PC8265,5.00,,Asda,N/A,Operational Services,Revenue,Catering,Catering,
http://thanet.gov.uk/supplierspend,Thanet District Council,26/05/2016,PC8207,346.36,,Barretts Repair Centre,N/A,Community Services,Revenue,Direct Transport Costs,Vehicle Management,
http://thanet.gov.uk/supplierspend,Thanet District Council,26/05/2016,PC8294,126.12,,Barriers Direct,N/A,Corporate Resources and S151,Revenue,"Equip, Furniture And Materials",Facilities And Management Serv,
http://thanet.gov.uk/supplierspend,Thanet District Council,26/05/2016,PC8195,27.52,,Booker Ltd,N/A,Community Services,Revenue,Catering,Catering,
http://thanet.gov.uk/supplierspend,Thanet District Council,26/05/2016,PC8196,13.98,,Booker Ltd,N/A,Community Services,Revenue,Catering,Catering,
http://thanet.gov.uk/supplierspend,Thanet District Council,26/05/2016,PC8197,11.39,,Booker Ltd,N/A,Community Services,Revenue,Catering,Catering,
http://thanet.gov.uk/supplierspend,Thanet District Council,26/05/2016,PC8216,16.50,,Booker Ltd,N/A,Chief Executive,Revenue,Catering,Catering,
http://thanet.gov.uk/supplierspend,Thanet District Council,26/05/2016,PC8217,3.19,,Booker Ltd,N/A,Community Services,Revenue,Catering,Catering,
http://thanet.gov.uk/supplierspend,Thanet District Council,26/05/2016,PC8246,19.99,,Booker Ltd,N/A,Chief Executive,Revenue,Catering,Catering,
http://thanet.gov.uk/supplierspend,Thanet District Council,26/05/2016,PC8272,40.99,,Booker Ltd,N/A,Community Services,Revenue,Catering,Catering,
http://thanet.gov.uk/supplierspend,Thanet District Council,26/05/2016,PC8273,9.98,,Booker Ltd,N/A,Community Services,Revenue,Catering,Catering,
http://thanet.gov.uk/supplierspend,Thanet District Council,26/05/2016,PC8283,38.22,,Booker Ltd,N/A,Operational Services,Revenue,Catering,Catering,
http://thanet.gov.uk/supplierspend,Thanet District Council,26/05/2016,PC8261,15.75,2.63,Botany Bay Hotel,N/A,Operational Services,Revenue,Catering,Human Resources,
http://thanet.gov.uk/supplierspend,Thanet District Council,26/05/2016,409518,1600.00,,Canterbury Scaffolding,CAN023,Corporate Resources and S151,Balance Sheet,Council Dwellings,Construction-Repair And Maint,
http://thanet.gov.uk/supplierspend,Thanet District Council,26/05/2016,PC8252,2.28,0.38,Card Factory,N/A,Chief Executive,Revenue,"Print, Stat And Gen Off Exps",Stationery,
http://thanet.gov.uk/supplierspend,Thanet District Council,26/05/2016,409170,1398.84,,Civica Uk Ltd,CIV003,East Kent Shared Services,Revenue,Communications & Computing,ICT,
http://thanet.gov.uk/supplierspend,Thanet District Council,26/05/2016,PC8233,450.00,,Coach And Bus Week,N/A,Community Services,Revenue,"Equip, Furniture And Materials",Facilities And Management Serv,
http://thanet.gov.uk/supplierspend,Thanet District Council,26/05/2016,PC8301,44.43,,Coop Group Petrol Minster,N/A,Operational Services,Revenue,Miscellaneous Expenses,Vehicle Management,
http://thanet.gov.uk/supplierspend,Thanet District Council,26/05/2016,PC8241,47.50,,Craig & Rose,N/A,Community Services,Revenue,"Equip, Furniture And Materials",Building Construction Materials,
http://thanet.gov.uk/supplierspend,Thanet District Council,26/05/2016,PC8218,47.85,,Cultpens (Paypal),N/A,Operational Services,Revenue,"Print, Stat And Gen Off Exps",Stationery,
http://thanet.gov.uk/supplierspend,Thanet District Council,26/05/2016,PC8231,-47.85,,Cultpens (Paypal),N/A,Operational Services,Revenue,"Print, Stat And Gen Off Exps",Stationery,
http://thanet.gov.uk/supplierspend,Thanet District Council,26/05/2016,PC8239,29.65,,Dave Fox Motorcycles,N/A,Operational Services,Revenue,"Equip, Furniture And Materials",Vehicle Management,
http://thanet.gov.uk/supplierspend,Thanet District Council,26/05/2016,PC8240,640.37,,Dave Fox Motorcycles,N/A,Operational Services,Revenue,"Equip, Furniture And Materials",Vehicle Management,
http://thanet.gov.uk/supplierspend,Thanet District Council,26/05/2016,409525,2300.00,,Dolphin Lifts Kent,DOL003,Corporate Resources and S151,Balance Sheet,Capital Exp-Non Council Assets,Grants,
http://thanet.gov.uk/supplierspend,Thanet District Council,26/05/2016,PC8322,232.50,,DVLA,N/A,Operational Services,Revenue,Direct Transport Costs,Various Cats - Public Sector,
http://thanet.gov.uk/supplierspend,Thanet District Council,26/05/2016,409236,264.80,,Eagle Envelopes Ltd,EAG001,East Kent Shared Services,Revenue,"Print, Stat And Gen Off Exps",Stationery,
http://thanet.gov.uk/supplierspend,Thanet District Council,26/05/2016,PC8327,119.90,,EB Kent Digital Award,N/A,Community Services,Revenue,Expenses,ICT,
http://thanet.gov.uk/supplierspend,Thanet District Council,26/05/2016,408533,758.64,,Edf Energy Customers Plc,EDF004,Operational Services,Revenue,Energy Costs,Utilities,
http://thanet.gov.uk/supplierspend,Thanet District Council,26/05/2016,409010,-2008.90,,Edf Energy Customers Plc,EDF004,Operational Services,Revenue,Energy Costs,Utilities,
http://thanet.gov.uk/supplierspend,Thanet District Council,26/05/2016,409011,1965.56,,Edf Energy Customers Plc,EDF004,Operational Services,Revenue,Energy Costs,Utilities,
http://thanet.gov.uk/supplierspend,Thanet District Council,26/05/2016,409018,-645.01,,Edf Energy Customers Plc,EDF004,Operational Services,Revenue,Energy Costs,Utilities,
http://thanet.gov.uk/supplierspend,Thanet District Council,26/05/2016,409019,-758.64,,Edf Energy Customers Plc,EDF004,Operational Services,Revenue,Energy Costs,Utilities,
http://thanet.gov.uk/supplierspend,Thanet District Council,26/05/2016,409021,1153.23,,Edf Energy Customers Plc,EDF004,Operational Services,Revenue,Energy Costs,Utilities,
http://thanet.gov.uk/supplierspend,Thanet District Council,26/05/2016,409022,1335.59,,Edf Energy Customers Plc,EDF004,Operational Services,Revenue,Energy Costs,Utilities,
http://thanet.gov.uk/supplierspend,Thanet District Council,26/05/2016,PC8279,32.49,,Elepos,N/A,East Kent Shared Services,Revenue,"Equip, Furniture And Materials",Stationery,
http://thanet.gov.uk/supplierspend,Thanet District Council,26/05/2016,PC8117,220.00,,Emap Ltd-Subscriptions,N/A,Corporate Resources and S151,Revenue,Grants & Subscriptions,Financial Services,
http://thanet.gov.uk/supplierspend,Thanet District Council,26/05/2016,PC8248,12.25,,Euroffice UK Ltd,N/A,East Kent Shared Services,Revenue,Communications & Computing,Stationery,
http://thanet.gov.uk/supplierspend,Thanet District Council,26/05/2016,408744,720.00,,Express Glazing,GLA004,Operational Services,Revenue,"Equip, Furniture And Materials",Building Construction Material,
http://thanet.gov.uk/supplierspend,Thanet District Council,26/05/2016,PC8288,108.33,,F J Rogers,N/A,Community Services,Revenue,"Equip, Furniture And Materials",Facilities And Management Serv,
http://thanet.gov.uk/supplierspend,Thanet District Council,26/05/2016,PC8250,10.00,,Facebook,N/A,Community Services,Revenue,Services,Facilities And Management Serv,
http://thanet.gov.uk/supplierspend,Thanet District Council,26/05/2016,PC8251,138.68,,Facebook,N/A,Corporate Resources and S151,Revenue,Miscellaneous Expenses,Facilities And Management Serv,
http://thanet.gov.uk/supplierspend,Thanet District Council,26/05/2016,409526,286.68,,Family Mosaic Housing,FAM001,Corporate Resources and S151,Balance Sheet,Capital Exp-Non Council Assets,Housing Management,
http://thanet.gov.uk/supplierspend,Thanet District Council,26/05/2016,409530,748.81,,Family Mosaic Housing,FAM001,Corporate Resources and S151,Balance Sheet,Capital Exp-Non Council Assets,Housing Management,
http://thanet.gov.uk/supplierspend,Thanet District Council,26/05/2016,PC8311,47.47,,Finer Filters,N/A,Community Services,Revenue,"Equip, Furniture And Materials",Facilities And Management Serv,
http://thanet.gov.uk/supplierspend,Thanet District Council,26/05/2016,PC7186,-24.90,,Firstaid4Less,N/A,Operational Services,Revenue,"Equip, Furniture And Materials",Healthcare,
http://thanet.gov.uk/supplierspend,Thanet District Council,26/05/2016,PC8342,113.15,,Google,N/A,Community Services,Revenue,Miscellaneous Expenses,ICT,
http://thanet.gov.uk/supplierspend,Thanet District Council,26/05/2016,409256,1025.00,,Hi Way Services Ltd,HIW002,Operational Services,Revenue,"Repairs,  Alter & Mtce - Build",Highway Equipment And Material,
http://thanet.gov.uk/supplierspend,Thanet District Council,26/05/2016,PC8304,28.33,,Hilton Birmingham,N/A,Operational Services,Revenue,Miscellaneous Expenses,Human Resources,
http://thanet.gov.uk/supplierspend,Thanet District Council,26/05/2016,PC8305,19.58,,Hilton Birmingham,N/A,Operational Services,Revenue,Miscellaneous Expenses,Human Resources,
http://thanet.gov.uk/supplierspend,Thanet District Council,26/05/2016,PC8309,30.00,,Hilton Birmingham,N/A,Operational Services,Revenue,Miscellaneous Expenses,Human Resources,
http://thanet.gov.uk/supplierspend,Thanet District Council,26/05/2016,PC8310,30.00,,Hilton Birmingham,N/A,Operational Services,Revenue,Miscellaneous Expenses,Human Resources,
http://thanet.gov.uk/supplierspend,Thanet District Council,26/05/2016,PC7750,108.33,,Holiday Inn  Leicester,N/A,Corporate Resources and S151,Revenue,Training,Human Resources,
http://thanet.gov.uk/supplierspend,Thanet District Council,26/05/2016,PC8300,53.17,8.87,Homebase,N/A,Community Services,Revenue,"Equip, Furniture And Materials",Building Construction Materials,
http://thanet.gov.uk/supplierspend,Thanet District Council,26/05/2016,407904,1297.32,,Hr Go (Kent) Ltd,HRG001,Operational Services,Revenue,Agency Staff,Human Resources,
http://thanet.gov.uk/supplierspend,Thanet District Council,26/05/2016,408206,1563.42,,Hr Go (Kent) Ltd,HRG001,Operational Services,Revenue,Agency Staff,Human Resources,
http://thanet.gov.uk/supplierspend,Thanet District Council,26/05/2016,408730,1604.31,,Hr Go (Kent) Ltd,HRG001,Operational Services,Revenue,Agency Staff,Human Resources,
http://thanet.gov.uk/supplierspend,Thanet District Council,26/05/2016,409141,1597.10,,Hr Go (Kent) Ltd,HRG001,Operational Services,Revenue,Agency Staff,Human Resources,
http://thanet.gov.uk/supplierspend,Thanet District Council,26/05/2016,409142,486.55,,Hr Go (Kent) Ltd,HRG001,Operational Services,Revenue,Agency Staff,Human Resources,
http://thanet.gov.uk/supplierspend,Thanet District Council,26/05/2016,409146,905.60,,Hr Go (Kent) Ltd,HRG001,Operational Services,Revenue,Agency Staff,Human Resources,
http://thanet.gov.uk/supplierspend,Thanet District Council,26/05/2016,409148,865.06,,Hr Go (Kent) Ltd,HRG001,Operational Services,Revenue,Agency Staff,Human Resources,
http://thanet.gov.uk/supplierspend,Thanet District Council,26/05/2016,409149,1238.52,,Hr Go (Kent) Ltd,HRG001,Operational Services,Revenue,Agency Staff,Human Resources,
http://thanet.gov.uk/supplierspend,Thanet District Council,26/05/2016,409150,529.47,,Hr Go (Kent) Ltd,HRG001,Community Services,Revenue,Agency Staff,Human Resources,
http://thanet.gov.uk/supplierspend,Thanet District Council,26/05/2016,409268,11106.68,,Hr Go (Kent) Ltd,HRG001,Operational Services,Revenue,Agency Staff,Human Resources,
http://thanet.gov.uk/supplierspend,Thanet District Council,26/05/2016,409270,-1381.01,,Hr Go (Kent) Ltd,HRG001,Operational Services,Revenue,Agency Staff,Human Resources,
http://thanet.gov.uk/supplierspend,Thanet District Council,26/05/2016,409271,3478.45,,Hr Go (Kent) Ltd,HRG001,Operational Services,Revenue,Agency Staff,Human Resources,
http://thanet.gov.uk/supplierspend,Thanet District Council,26/05/2016,409272,5598.82,,Hr Go (Kent) Ltd,HRG001,Operational Services,Revenue,Agency Staff,Human Resources,
http://thanet.gov.uk/supplierspend,Thanet District Council,26/05/2016,PC8235,25.00,,HSE,N/A,Community Services,Revenue,Grants & Subscriptions,Stationery,
http://thanet.gov.uk/supplierspend,Thanet District Council,26/05/2016,PC8312,150.00,,IPF,N/A,Corporate Governance,Revenue,"Print, Stat And Gen Off Exps",Stationery,
http://thanet.gov.uk/supplierspend,Thanet District Council,26/05/2016,408753,269.70,,Jewson Ltd,JEW001,Operational Services,Revenue,"Equip, Furniture And Materials",Building Construction Material,
http://thanet.gov.uk/supplierspend,Thanet District Council,26/05/2016,408992,280.00,,John Reeve (Plant Hire) Ltd,REE013,Operational Services,Revenue,"Repairs,  Alter & Mtce - Build",Vehicle Management,
http://thanet.gov.uk/supplierspend,Thanet District Council,26/05/2016,409116,895.00,,Keith Tait,TAI001,Operational Services,Revenue,Grounds Mtce Costs,Horticultural,
http://thanet.gov.uk/supplierspend,Thanet District Council,26/05/2016,409117,395.00,,Keith Tait,TAI001,Operational Services,Revenue,Grounds Mtce Costs,Horticultural,
http://thanet.gov.uk/supplierspend,Thanet District Council,26/05/2016,408964,1203.45,,Kent County Council (Kcs),KCC003,Operational Services,Revenue,Energy Costs,Facilities And Management Serv,
http://thanet.gov.uk/supplierspend,Thanet District Council,26/05/2016,408965,1332.36,,Kent County Council (Kcs),KCC003,Operational Services,Revenue,Energy Costs,Facilities And Management Serv,
http://thanet.gov.uk/supplierspend,Thanet District Council,26/05/2016,408966,1174.48,,Kent County Council (Kcs),KCC003,Operational Services,Revenue,Energy Costs,Facilities And Management Serv,
http://thanet.gov.uk/supplierspend,Thanet District Council,26/05/2016,408967,1215.90,,Kent County Council (Kcs),KCC003,Operational Services,Revenue,Energy Costs,Facilities And Management Serv,
http://thanet.gov.uk/supplierspend,Thanet District Council,26/05/2016,409108,1356.94,,Lister Wilder Limited,LIS002,Operational Services,Revenue,"Equip, Furniture And Materials",Horticultural,
http://thanet.gov.uk/supplierspend,Thanet District Council,26/05/2016,409109,326.04,,Lister Wilder Limited,LIS002,Operational Services,Revenue,"Equip, Furniture And Materials",Horticultural,
http://thanet.gov.uk/supplierspend,Thanet District Council,26/05/2016,409110,349.41,,Lister Wilder Limited,LIS002,Operational Services,Revenue,"Equip, Furniture And Materials",Horticultural,
http://thanet.gov.uk/supplierspend,Thanet District Council,26/05/2016,409111,349.41,,Lister Wilder Limited,LIS002,Operational Services,Revenue,"Equip, Furniture And Materials",Horticultural,
http://thanet.gov.uk/supplierspend,Thanet District Council,26/05/2016,409112,301.41,,Lister Wilder Limited,LIS002,Operational Services,Revenue,"Equip, Furniture And Materials",Horticultural,
http://thanet.gov.uk/supplierspend,Thanet District Council,26/05/2016,PC8274,77.70,,London & South Eastern,N/A,East Kent Shared Services,Revenue,Expenses,Human Resources,
http://thanet.gov.uk/supplierspend,Thanet District Council,26/05/2016,PC8285,37.20,,London & South Eastern,N/A,Chief Executive,Revenue,Public Transport,Human Resources,
http://thanet.gov.uk/supplierspend,Thanet District Council,26/05/2016,PC8287,86.40,,London & South Eastern,N/A,Community Services,Revenue,Public Transport,Human Resources,
http://thanet.gov.uk/supplierspend,Thanet District Council,26/05/2016,408717,224.59,,Lyreco Uk Limited,LYR001,Community Services,Revenue,"Equip, Furniture And Materials",Stationery,
http://thanet.gov.uk/supplierspend,Thanet District Council,26/05/2016,408717,171.15,,Lyreco Uk Limited,LYR001,Operational Services,Revenue,"Print, Stat And Gen Off Exps",Stationery,
http://thanet.gov.uk/supplierspend,Thanet District Council,26/05/2016,408717,22.20,,Lyreco Uk Limited,LYR001,East Kent Shared Services,Revenue,"Print, Stat And Gen Off Exps",Stationery,
http://thanet.gov.uk/supplierspend,Thanet District Council,26/05/2016,409200,611.64,,Lyreco Uk Limited,LYR001,Corporate Resources and S151,Revenue,"Print, Stat And Gen Off Exps",Stationery,
http://thanet.gov.uk/supplierspend,Thanet District Council,26/05/2016,PC8303,16.40,2.74,M&S Simply Food,N/A,Operational Services,Revenue,Miscellaneous Expenses,Human Resources,
http://thanet.gov.uk/supplierspend,Thanet District Council,26/05/2016,PC8258,171.00,,Marks & Spencer,N/A,East Kent Shared Services,Revenue,Catering,Facilities And Management Serv,
http://thanet.gov.uk/supplierspend,Thanet District Council,26/05/2016,PC8343,-171.00,,Marks & Spencer,N/A,East Kent Shared Services,Revenue,Catering,Facilities And Management Serv,
http://thanet.gov.uk/supplierspend,Thanet District Council,26/05/2016,PC8249,28.00,,Meade Electrical Ltd,N/A,Operational Services,Revenue,"Equip, Furniture And Materials",Building Construction Materials,
http://thanet.gov.uk/supplierspend,Thanet District Council,26/05/2016,409134,703.04,,Mears Ltd,MEA003,Corporate Resources and S151,Balance Sheet,Rechargeable Works,Construction-Repair And Maint,
http://thanet.gov.uk/supplierspend,Thanet District Council,26/05/2016,409139,540.70,,Mears Ltd,MEA003,Operational Services,Revenue,"Repairs,  Alter & Mtce - Build",Construction-Repair And Maint,
http://thanet.gov.uk/supplierspend,Thanet District Council,26/05/2016,409206,419.19,,Mears Ltd,MEA003,Corporate Resources and S151,Revenue,"Repairs,  Alter & Mtce - Build",Construction-Repair And Maint,
http://thanet.gov.uk/supplierspend,Thanet District Council,26/05/2016,409206,908.84,,Mears Ltd,MEA003,Operational Services,Revenue,"Repairs,  Alter & Mtce - Build",Construction-Repair And Maint,
http://thanet.gov.uk/supplierspend,Thanet District Council,26/05/2016,408274,350.00,,Nayland Rock Hotels Ltd,NAY002,Community Services,Revenue,Services,Housing Management,
http://thanet.gov.uk/supplierspend,Thanet District Council,26/05/2016,PC8319,29.17,,O2 UK,N/A,East Kent Shared Services,Revenue,Communications & Computing,ICT,
http://thanet.gov.uk/supplierspend,Thanet District Council,26/05/2016,PC8320,33.33,,O2 UK,N/A,East Kent Shared Services,Revenue,Communications & Computing,ICT,
http://thanet.gov.uk/supplierspend,Thanet District Council,26/05/2016,PC8350,35.00,,O2 UK,N/A,East Kent Shared Services,Revenue,Communications & Computing,ICT,
http://thanet.gov.uk/supplierspend,Thanet District Council,26/05/2016,PC8351,-35.00,,O2 UK,N/A,East Kent Shared Services,Revenue,Communications & Computing,ICT,
http://thanet.gov.uk/supplierspend,Thanet District Council,26/05/2016,PC8308,12.57,,Oxford BK,N/A,Operational Services,Revenue,Miscellaneous Expenses,Human Resources,
http://thanet.gov.uk/supplierspend,Thanet District Council,26/05/2016,409174,1595.32,,Palmstead Nurseries Ltd,PAL015,Community Services,Revenue,"Equip, Furniture And Materials",Horticultural,
http://thanet.gov.uk/supplierspend,Thanet District Council,26/05/2016,409248,90.00,,Parkeon Limited,PAR063,Community Services,Revenue,"Equip, Furniture And Materials",Street And Traffic Management,
http://thanet.gov.uk/supplierspend,Thanet District Council,26/05/2016,409248,1211.00,,Parkeon Limited,PAR063,Operational Services,Revenue,"Equip, Furniture And Materials",Street And Traffic Management,
http://thanet.gov.uk/supplierspend,Thanet District Council,26/05/2016,PC8307,51.95,8.66,Pizza Express  Birmingham,N/A,Operational Services,Revenue,Miscellaneous Expenses,Human Resources,
http://thanet.gov.uk/supplierspend,Thanet District Council,26/05/2016,PC8201,386.95,,Point Safety,N/A,Operational Services,Revenue,"Equip, Furniture And Materials",Building Construction Materials,
http://thanet.gov.uk/supplierspend,Thanet District Council,26/05/2016,PC8205,110.00,,Possession Claims Online,N/A,Community Services,Revenue,Services,Various Cats - Public Sector,
http://thanet.gov.uk/supplierspend,Thanet District Council,26/05/2016,PC8275,110.00,,Possession Claims Online,N/A,Community Services,Revenue,Services,Various Cats - Public Sector,
http://thanet.gov.uk/supplierspend,Thanet District Council,26/05/2016,PC8276,110.00,,Possession Claims Online,N/A,Community Services,Revenue,Services,Various Cats - Public Sector,
http://thanet.gov.uk/supplierspend,Thanet District Council,26/05/2016,PC8278,325.00,,Possession Claims Online,N/A,Community Services,Revenue,Services,Various Cats - Public Sector,
http://thanet.gov.uk/supplierspend,Thanet District Council,26/05/2016,PC8298,325.00,,Possession Claims Online,N/A,Community Services,Revenue,Services,Various Cats - Public Sector,
http://thanet.gov.uk/supplierspend,Thanet District Council,26/05/2016,PC8324,110.00,,Possession Claims Online,N/A,Community Services,Revenue,Services,Various Cats - Public Sector,
http://thanet.gov.uk/supplierspend,Thanet District Council,26/05/2016,PC8325,110.00,,Possession Claims Online,N/A,Community Services,Revenue,Services,Various Cats - Public Sector,
http://thanet.gov.uk/supplierspend,Thanet District Council,26/05/2016,PC8326,110.00,,Possession Claims Online,N/A,Community Services,Revenue,Services,Various Cats - Public Sector,
http://thanet.gov.uk/supplierspend,Thanet District Council,26/05/2016,PC8354,-325.00,,Possession Claims Online,N/A,Community Services,Revenue,Services,Various Cats - Public Sector,
http://thanet.gov.uk/supplierspend,Thanet District Council,26/05/2016,PC8269,4.05,0.68,Poundland,N/A,East Kent Shared Services,Revenue,Catering,Facilities And Management Serv,
http://thanet.gov.uk/supplierspend,Thanet District Council,26/05/2016,PC8270,15.10,,Poundworld,N/A,East Kent Shared Services,Revenue,Catering,Facilities And Management Serv,
http://thanet.gov.uk/supplierspend,Thanet District Council,26/05/2016,PC8271,193.50,32.25,Premier Inn,N/A,East Kent Shared Services,Revenue,Expenses,Human Resources,
http://thanet.gov.uk/supplierspend,Thanet District Council,26/05/2016,PC8282,64.50,10.75,Premier Inn,N/A,Corporate Resources and S151,Revenue,Expenses,Human Resources,
http://thanet.gov.uk/supplierspend,Thanet District Council,26/05/2016,409092,822.00,,R Cannon,CAN007,Operational Services,Revenue,Services,Maritime Services,
http://thanet.gov.uk/supplierspend,Thanet District Council,26/05/2016,408059,350.00,,R J Broadley Tree Surgery,RJB002,Operational Services,Revenue,Grounds Mtce Costs,Horticultural,
http://thanet.gov.uk/supplierspend,Thanet District Council,26/05/2016,408713,800.00,,R J Broadley Tree Surgery,RJB002,Operational Services,Revenue,Grounds Mtce Costs,Horticultural,
http://thanet.gov.uk/supplierspend,Thanet District Council,26/05/2016,409157,727.10,,Rigby Taylor Ltd,RIG002,Operational Services,Revenue,"Equip, Furniture And Materials",Horticultural,
http://thanet.gov.uk/supplierspend,Thanet District Council,26/05/2016,409237,2209.33,,Securitas Security Services (Uk) Ltd,SEC019,Corporate Resources and S151,Revenue,Services,Facilities And Management Serv,
http://thanet.gov.uk/supplierspend,Thanet District Council,26/05/2016,409163,5596.00,,Sharpe Pritchard Llp,SHA030,Corporate Resources and S151,Balance Sheet,Other Land And Buildings-Hra,Legal Services,
http://thanet.gov.uk/supplierspend,Thanet District Council,26/05/2016,PC8238,53.95,,Shell Royal Oak,N/A,Operational Services,Revenue,"Equip, Furniture And Materials",Vehicle Management,
http://thanet.gov.uk/supplierspend,Thanet District Council,26/05/2016,409173,601.62,,Signway Supplies (Datchet) Limited,SIG013,Operational Services,Revenue,"Repairs,  Alter & Mtce - Build",Highway Equipment And Material,
http://thanet.gov.uk/supplierspend,Thanet District Council,26/05/2016,PC8338,390.00,65,Site Glass Southern Ltd,N/A,Operational Services,Revenue,Direct Transport Costs,Vehicle Management,
http://thanet.gov.uk/supplierspend,Thanet District Council,26/05/2016,PC8198,77.70,,South Eastern Web,N/A,Corporate Resources and S151,Revenue,Public Transport,Human Resources,
http://thanet.gov.uk/supplierspend,Thanet District Council,26/05/2016,PC8199,66.70,,South Eastern Web,N/A,Corporate Resources and S151,Revenue,Public Transport,Human Resources,
http://thanet.gov.uk/supplierspend,Thanet District Council,26/05/2016,PC8200,39.50,,South Eastern Web,N/A,Community Services,Revenue,Public Transport,Human Resources,
http://thanet.gov.uk/supplierspend,Thanet District Council,26/05/2016,PC8281,9.50,,South Eastern Web,N/A,Community Services,Revenue,Public Transport,Human Resources,
http://thanet.gov.uk/supplierspend,Thanet District Council,26/05/2016,PC8314,61.60,,South Eastern Web,N/A,Corporate Resources and S151,Revenue,Public Transport,Human Resources,
http://thanet.gov.uk/supplierspend,Thanet District Council,26/05/2016,PC8219,77.70,,Southeastern Web,N/A,Corporate Resources and S151,Revenue,Public Transport,Human Resources,
http://thanet.gov.uk/supplierspend,Thanet District Council,26/05/2016,PC8243,72.00,,Southeastern Web,N/A,Corporate Resources and S151,Revenue,Public Transport,Human Resources,
http://thanet.gov.uk/supplierspend,Thanet District Council,26/05/2016,PC8253,66.70,,Southeastern Web,N/A,Community Services,Revenue,Public Transport,Human Resources,
http://thanet.gov.uk/supplierspend,Thanet District Council,26/05/2016,PC8254,80.70,,Southeastern Web,N/A,Corporate Resources and S151,Revenue,Public Transport,Human Resources,
http://thanet.gov.uk/supplierspend,Thanet District Council,26/05/2016,PC8255,25.70,,Southeastern Web,N/A,Community Services,Revenue,Public Transport,Human Resources,
http://thanet.gov.uk/supplierspend,Thanet District Council,26/05/2016,PC8260,43.60,,Southeastern Web,N/A,Community Services,Revenue,Public Transport,Human Resources,
http://thanet.gov.uk/supplierspend,Thanet District Council,26/05/2016,PC8267,222.10,,Southeastern Web,N/A,East Kent Shared Services,Revenue,Public Transport,Human Resources,
http://thanet.gov.uk/supplierspend,Thanet District Council,26/05/2016,409014,268.27,,Southern Electric,SEL007,Operational Services,Revenue,Energy Costs,Utilities,
http://thanet.gov.uk/supplierspend,Thanet District Council,26/05/2016,409396,332.10,,Southern Electric,SEL007,Community Services,Revenue,Energy Costs,Utilities,
http://thanet.gov.uk/supplierspend,Thanet District Council,26/05/2016,409397,253.56,,Southern Electric,SEL007,Community Services,Revenue,Energy Costs,Utilities,
http://thanet.gov.uk/supplierspend,Thanet District Council,26/05/2016,409410,877.94,,Southern Electric,SEL007,Operational Services,Revenue,Energy Costs,Utilities,
http://thanet.gov.uk/supplierspend,Thanet District Council,26/05/2016,409505,751.29,,Southern Electric,SEL007,Operational Services,Revenue,Energy Costs,Utilities,
http://thanet.gov.uk/supplierspend,Thanet District Council,26/05/2016,409507,894.14,,Southern Electric,SEL007,Community Services,Revenue,Energy Costs,Utilities,
http://thanet.gov.uk/supplierspend,Thanet District Council,26/05/2016,409515,396.35,,Southern Electric,SEL007,Corporate Resources and S151,Revenue,Energy Costs,Utilities,
http://thanet.gov.uk/supplierspend,Thanet District Council,26/05/2016,409412,4106.77,,Southern Water,SWA001,Community Services,Revenue,Water Services,Utilities,
http://thanet.gov.uk/supplierspend,Thanet District Council,26/05/2016,409413,2803.41,,Southern Water,SWA001,Community Services,Revenue,Water Services,Utilities,
http://thanet.gov.uk/supplierspend,Thanet District Council,26/05/2016,PC8257,4.20,0.7,Standfast,N/A,Operational Services,Revenue,"Equip, Furniture And Materials",Facilities And Management Serv,
http://thanet.gov.uk/supplierspend,Thanet District Council,26/05/2016,PC8313,130.00,,Stationery Office,N/A,Operational Services,Revenue,"Equip, Furniture And Materials",Stationery,
http://thanet.gov.uk/supplierspend,Thanet District Council,26/05/2016,PC8316,250.00,,Survey Monkey,N/A,East Kent Shared Services,Revenue,Grants & Subscriptions,ICT,
http://thanet.gov.uk/supplierspend,Thanet District Council,26/05/2016,PC8266,27.09,4.52,Tesco,N/A,Operational Services,Revenue,Catering,Catering,
http://thanet.gov.uk/supplierspend,Thanet District Council,26/05/2016,PC8268,141.40,23.57,Tesco,N/A,East Kent Shared Services,Revenue,Catering,Catering,
http://thanet.gov.uk/supplierspend,Thanet District Council,26/05/2016,PC8206,30.89,5.15,Tesco Direct,N/A,Operational Services,Revenue,"Equip, Furniture And Materials",Domestic Goods,
http://thanet.gov.uk/supplierspend,Thanet District Council,26/05/2016,PC8256,83.33,,Tesco Extra,N/A,Corporate Resources and S151,Revenue,Direct Transport Costs,Vehicle Management,
http://thanet.gov.uk/supplierspend,Thanet District Council,26/05/2016,PC8306,39.97,,TGI Fridays UK  Birmingham,N/A,Operational Services,Revenue,Miscellaneous Expenses,Human Resources,
http://thanet.gov.uk/supplierspend,Thanet District Council,26/05/2016,PC8204,220.00,,Thanet County Court,N/A,Community Services,Revenue,Services,Various Cats - Public Sector,
http://thanet.gov.uk/supplierspend,Thanet District Council,26/05/2016,PC8237,110.00,,Thanet County Court,N/A,Community Services,Revenue,Services,Various Cats - Public Sector,
http://thanet.gov.uk/supplierspend,Thanet District Council,26/05/2016,PC8277,110.00,,Thanet County Court,N/A,Community Services,Revenue,Services,Various Cats - Public Sector,
http://thanet.gov.uk/supplierspend,Thanet District Council,26/05/2016,409090,1950.00,,Thanet Nursery Project Limited,TNU001,Corporate Resources and S151,Revenue,Rents,Facilities And Management Serv,
http://thanet.gov.uk/supplierspend,Thanet District Council,26/05/2016,407951,832.00,,Thanet Safe Limited,TSA004,Operational Services,Revenue,"Equip, Furniture And Materials",Facilities And Management Serv,
http://thanet.gov.uk/supplierspend,Thanet District Council,26/05/2016,PC8244,51.00,,The Poppy Appeal,N/A,Chief Executive,Revenue,Services,Human Resources,
http://thanet.gov.uk/supplierspend,Thanet District Council,26/05/2016,PC8226,0.00,,The Rock/Chocolate People,N/A,Community Services,Revenue,"Equip, Furniture And Materials",Stationery,
http://thanet.gov.uk/supplierspend,Thanet District Council,26/05/2016,PC8230,40.00,,Tigerpens.co.uk,N/A,Operational Services,Revenue,"Print, Stat And Gen Off Exps",Stationery,
http://thanet.gov.uk/supplierspend,Thanet District Council,26/05/2016,PC8245,10.00,1.67,Timpson Ltd,N/A,Community Services,Revenue,Fixtures & Fittings,Facilities And Management Serv,
http://thanet.gov.uk/supplierspend,Thanet District Council,26/05/2016,PC8321,10.00,1.67,Timpson Ltd,N/A,Community Services,Revenue,Fixtures & Fittings,Facilities And Management Serv,
http://thanet.gov.uk/supplierspend,Thanet District Council,26/05/2016,PC8331,7.70,,TNA Discovery Orders,N/A,Operational Services,Revenue,"Repairs,  Alter & Mtce - Build",Stationery,
http://thanet.gov.uk/supplierspend,Thanet District Council,26/05/2016,PC8284,10.37,,Toolstation Ltd,N/A,Community Services,Revenue,"Equip, Furniture And Materials",Building Construction Materials,
http://thanet.gov.uk/supplierspend,Thanet District Council,26/05/2016,PC8297,2.68,,Toolstation Ltd,N/A,Community Services,Revenue,"Equip, Furniture And Materials",Building Construction Materials,
http://thanet.gov.uk/supplierspend,Thanet District Council,26/05/2016,PC8323,10.37,,Toolstation Ltd,N/A,Community Services,Revenue,"Equip, Furniture And Materials",Building Construction Materials,
http://thanet.gov.uk/supplierspend,Thanet District Council,26/05/2016,408033,90029.76,,Topbond Plc,TOP010,Corporate Resources and S151,Balance Sheet,Other Land And Buildings-Hra,Construction-Repair And Maint,
http://thanet.gov.uk/supplierspend,Thanet District Council,26/05/2016,409529,6240.07,,Trueden Disability Adaptations Ltd,TRU012,Corporate Resources and S151,Balance Sheet,Capital Exp-Non Council Assets,Grants,
http://thanet.gov.uk/supplierspend,Thanet District Council,26/05/2016,PC8332,145.50,,TV Licensing,N/A,East Kent Shared Services,Revenue,Services,Various Cats - Public Sector,
http://thanet.gov.uk/supplierspend,Thanet District Council,26/05/2016,PC8224,16.84,,Ukofficedirect.co.uk,N/A,Corporate Resources and S151,Revenue,"Print, Stat And Gen Off Exps",Stationery,
http://thanet.gov.uk/supplierspend,Thanet District Council,26/05/2016,PC8242,52.85,,Virgin Trains,N/A,Operational Services,Revenue,Public Transport,Human Resources,
http://thanet.gov.uk/supplierspend,Thanet District Council,26/05/2016,PC8296,185.75,,Virgin Trains,N/A,Corporate Resources and S151,Revenue,Public Transport,Human Resources,
http://thanet.gov.uk/supplierspend,Thanet District Council,26/05/2016,PC8236,129.80,,Virgin Trains East Coast,N/A,Community Services,Revenue,Public Transport,Human Resources,
http://thanet.gov.uk/supplierspend,Thanet District Council,26/05/2016,PC8289,33.90,5.65,Waitrose,N/A,East Kent Shared Services,Revenue,Catering,Catering,
http://thanet.gov.uk/supplierspend,Thanet District Council,26/05/2016,PC8247,51.54,,Zen Internet Limited,N/A,Community Services,Revenue,Communications & Computing,ICT,
http://thanet.gov.uk/supplierspend,Thanet District Council,31/05/2016,408698,378.50,,4imprint Direct Ltd,4IM001,Corporate Resources and S151,Revenue,"Print, Stat And Gen Off Exps",Facilities And Management Serv,
http://thanet.gov.uk/supplierspend,Thanet District Council,31/05/2016,409171,617.53,,Adecco Uk Ltd,ADE005,Chief Executive,Revenue,Agency Staff,Human Resources,
http://thanet.gov.uk/supplierspend,Thanet District Council,31/05/2016,409637,465.00,,Amber Driver Training,AMB004,Corporate Resources and S151,Revenue,Training,Human Resources,
http://thanet.gov.uk/supplierspend,Thanet District Council,31/05/2016,408651,380.00,,Astra Uk (Contracts) Ltd,AST003,Operational Services,Revenue,"Repairs,  Alter & Mtce - Build",Environmental Services,
http://thanet.gov.uk/supplierspend,Thanet District Council,31/05/2016,409421,390.45,,Channel Commercials Plc,CCO001,Operational Services,Revenue,Direct Transport Costs,Vehicle Management,
http://thanet.gov.uk/supplierspend,Thanet District Council,31/05/2016,409611,1175.51,,Eyeball Signs,EYE002,Operational Services,Revenue,"Repairs,  Alter & Mtce - Build",Facilities And Management Serv,
http://thanet.gov.uk/supplierspend,Thanet District Council,31/05/2016,409626,2076.00,,Grammer & Company Limited,GRA024,Operational Services,Revenue,Miscellaneous Expenses,Facilities And Management Serv,
http://thanet.gov.uk/supplierspend,Thanet District Council,31/05/2016,409433,652.71,,Hilton Cabinet Co Ltd,HIL002,Operational Services,Revenue,"Equip, Furniture And Materials",Furniture And Soft Furnishings,
http://thanet.gov.uk/supplierspend,Thanet District Council,31/05/2016,408673,4589.99,,Housing Reviews Limited,HOU012,Community Services,Revenue,Expenses,Special Community Care,
http://thanet.gov.uk/supplierspend,Thanet District Council,31/05/2016,408465,4515.00,,Kent County Council,KCC002,Community Services,Revenue,Services,Various Cats - Public Sector,
http://thanet.gov.uk/supplierspend,Thanet District Council,31/05/2016,409625,2791.87,,Kent County Council (Kcs),KCC003,Operational Services,Revenue,"Equip, Furniture And Materials",Facilities And Management Serv,
http://thanet.gov.uk/supplierspend,Thanet District Council,31/05/2016,408037,2080.00,,Lee Evans Partnership Llp,LEE007,Community Services,Revenue,Services,Consultancy,
http://thanet.gov.uk/supplierspend,Thanet District Council,31/05/2016,408712,475.23,,Lexisnexis Uk,LEX002,Corporate Governance,Revenue,"Print, Stat And Gen Off Exps",Human Resources,
http://thanet.gov.uk/supplierspend,Thanet District Council,31/05/2016,408575,331.00,,Main Man Supplies Ltd,MAI001,Operational Services,Revenue,"Clothes, Uniforms & Laundry",Clothing,
http://thanet.gov.uk/supplierspend,Thanet District Council,31/05/2016,408778,344.50,,Main Man Supplies Ltd,MAI001,Operational Services,Revenue,"Clothes, Uniforms & Laundry",Clothing,
http://thanet.gov.uk/supplierspend,Thanet District Council,31/05/2016,409089,1182.86,,Mears Ltd,MEA003,Operational Services,Revenue,"Repairs,  Alter & Mtce - Build",Construction-Repair And Maint,
http://thanet.gov.uk/supplierspend,Thanet District Council,31/05/2016,409202,97706.27,,Mears Ltd,MEA003,Community Services,Revenue,"Repairs,  Alter & Mtce - Build",Construction-Repair And Maint,
http://thanet.gov.uk/supplierspend,Thanet District Council,31/05/2016,409203,2766.33,,Mears Ltd,MEA003,Community Services,Revenue,"Repairs,  Alter & Mtce - Build",Construction-Repair And Maint,
http://thanet.gov.uk/supplierspend,Thanet District Council,31/05/2016,409204,1805.71,,Mears Ltd,MEA003,Community Services,Revenue,"Repairs,  Alter & Mtce - Build",Construction-Repair And Maint,
http://thanet.gov.uk/supplierspend,Thanet District Council,31/05/2016,409502,582.75,,Morgan Jones Ltd,MOR001,Community Services,Revenue,Agency Staff,Human Resources,
http://thanet.gov.uk/supplierspend,Thanet District Council,31/05/2016,409504,314.16,,Morgan Jones Ltd,MOR001,Corporate Resources and S151,Revenue,Agency Staff,Human Resources,
http://thanet.gov.uk/supplierspend,Thanet District Council,31/05/2016,408632,711.00,,Nagels Uk Ltd,NAG001,Operational Services,Revenue,"Print, Stat And Gen Off Exps",Facilities And Management Serv,
http://thanet.gov.uk/supplierspend,Thanet District Council,31/05/2016,409614,695.77,,Ocs Group Uk Ltd T/A Fountains,OCS005,Operational Services,Revenue,Fixtures & Fittings,Cleaning And Janitorial,
http://thanet.gov.uk/supplierspend,Thanet District Council,31/05/2016,409616,422.81,,Ocs Group Uk Ltd T/A Fountains,OCS005,Operational Services,Revenue,Fixtures & Fittings,Cleaning And Janitorial,
http://thanet.gov.uk/supplierspend,Thanet District Council,31/05/2016,409617,18056.74,,Ocs Group Uk Ltd T/A Fountains,OCS005,Operational Services,Revenue,Cleaning & Domestic Supplies,Cleaning And Janitorial,
http://thanet.gov.uk/supplierspend,Thanet District Council,31/05/2016,408650,7225.40,,Ostia Consulting Limited,OST001,Community Services,Revenue,Services,Consultancy,
http://thanet.gov.uk/supplierspend,Thanet District Council,31/05/2016,409708,196428.57,,Public Works Loan Board,PWL001,Corporate Resources and S151,Balance Sheet,Borrowing Repayable>1 Yr,Investments And Loans,
http://thanet.gov.uk/supplierspend,Thanet District Council,31/05/2016,409708,24343.21,,Public Works Loan Board,PWL001,Corporate Resources and S151,Balance Sheet,Debit Interest And Expenses,Investments And Loans,
http://thanet.gov.uk/supplierspend,Thanet District Council,31/05/2016,409703,722.92,,REDACTED PERSONAL DATA,N/A,Corporate Resources and S151,Balance Sheet,Capital Exp-Non Council Assets,Grants,
http://thanet.gov.uk/supplierspend,Thanet District Council,31/05/2016,409240,522.75,,Spaldings  Ltd,SPA006,Operational Services,Revenue,"Equip, Furniture And Materials",Horticultural,
http://thanet.gov.uk/supplierspend,Thanet District Council,31/05/2016,409242,251.19,,Sparshatts Of Kent Ltd,SPA008,Operational Services,Revenue,Direct Transport Costs,Vehicle Management,
http://thanet.gov.uk/supplierspend,Thanet District Council,31/05/2016,409612,14.48,,Tfa Fuel Services Ltd,TFA003,Operational Services,Revenue,Direct Transport Costs,Utilities,
http://thanet.gov.uk/supplierspend,Thanet District Council,31/05/2016,409612,3160.99,,Tfa Fuel Services Ltd,TFA003,Operational Services,Revenue,"Equip, Furniture And Materials",Utilities,
http://thanet.gov.uk/supplierspend,Thanet District Council,31/05/2016,408046,25000.00,,Visit Kent Ltd,VIS005,Community Services,Revenue,Miscellaneous Expenses,Arts And Leisure Services,
